Workbook

Sheet Impact Wanderers

Sheet Instructions & Basic Setup
B1: Let's get started: instructions | H1: Powered by Impact Wanderers
B9: This tool has been built to help you understand the negative and positive impact of your travels - both for a socio-economic and environmental perspective.
B10: We split the assessment in five parts: Transport, Accommodation, Consumption & waste, Leisure and volunteering.
B11: You can only enter one country at a time in this tool. If you wish to do the assessments for several countries, please save and complete several versions of this tool.
B12: We will soon publish an add-on that allows you to compare different countries. Stay tuned!
B14: This tool is meant to make you and us think about the impact of our choices while we travel - it is by no means meant to give a specific answer!
B15: Indeed, impact assessment is a constantly evolving science.
B16: If you have ideas as to how to improve the visuals, frameworks, indicators, messages or datasets, do not hesitate to contact us. This tool is meant to evolve through time and integrate your feedback!
B18: Throughout the tool, we use the following visual code:
D20: Category name: do not touch
D21: Data input: ONLY FILL IN THESE CELLS
D22: Results: do not touch
D23: Main results: do not touch
D24: Navigation: click on the footprints to navigate between pages.
B27: THE DATA INPUT STARTS HERE: Please fill in the light orange cells below.
B28: # of days
B29: # of travellers
B30: Country in which you travel | D30: (Please select)
B31: Where is home? | D31: (Please select)
B33: Please fill in the relevant light orange cells on each of the pages below and look at the results in the light blue cells.
B34: Transport
B35: Accomodation
B36: Consumption and waste
B37: Leisure
B38: Volunteering

Sheet Transport
B1: Transport: Carbon footprint and climate change | F1: Powered by Impact Wanderers
B9: Environmental impact | E9: Your travel:
B10: Carbon footprint | E10: # of days | F10: ='Instructions & Basic Setup'!D28 -> 0
B11: Avoided emissions | E11: # of travellers | F11: ='Instructions & Basic Setup'!D29 -> 0
B12: What if analysis | E12: Country | F12: ='Instructions & Basic Setup'!D30 -> (Please select)
B13: What if you had stayed home? | E13: Where is home? | F13: ='Instructions & Basic Setup'!D31 -> (Please select)
B14: Socio-economic impact | E14: If you need to modify information on your travel, please do it on the instructions page.
B15: Results
B17: Environmental impact: How much greenhouse gas emissions did you emit? | H17: Back to top
B19: How to make the tool work? Specify below in the light orange cells the amount of kilometers and # of days travelled with each means of transportation. You can find the kilometers on websites such as google.maps. If you have the amount and type of fuel consumed (column D, E and F), it may help obtain more specific results, in particular for local transports such as tuk tuk ride or hybrid vehicles. If not, we will use an estimation (check the level of uncertainty in column H). Enter the number of people being transported in the car, tuk tuk (etc...) for private transport. In Cambodia, some of our shared cabs were taking 9 people!
B25: # of days | C25: =F10 -> 0
B26: # of travellers | C26: =F11 -> 0
B27: Country | C27: =F12 -> (Please select)
B29: Enter your data in the light orange cells (google.maps can help!) | D29: Optional | H29: Check out your results here and on the graphs below!
C30: Total kilometers per person (over full time period) | D30: Average # of people (total) in the vehicle | E30: Total fuel consumption of the vehicle (litres) | F30: Type of fuel | H30: Total kilometers per person per day | I30: Greenhouse gases emissions (kg) per person per day | J30: Level of certainty (3=best) | K30: % repartition of greenhouse gases emissions
B31: Plane | H31: =IFERROR(C31/$C$25,"NA") -> NA | I31: =IFERROR(VLOOKUP(B31,sources!$A$6:$B$17,2,FALSE)*C31/$C$25,"NA") -> NA | J31: =IF(E31>0,3,3) -> 3 | K31: =IFERROR(I31/$I$45,0) -> 0
B32: Private car/ cab | F32: (Please select) | H32: =IFERROR(C32/$C$25,"NA") -> NA | I32: =IFERROR(IF(E32="",C32*VLOOKUP(B32,sources!$A$6:$B$18,2,FALSE)/'Instructions & Basic Setup'!$D$28,VLOOKUP(Transport!F32,sources!$B$24:$D$35,3,FALSE)/'Instructions & Basic Setup'!$D$28/Transport!D32),"NA") -> NA | J32: =IF(E32>0,3,2) -> 2 | K32: 0
B33: Motorbike | F33: (Please select) | H33: =IFERROR(C33/$C$25,"NA") -> NA | I33: =IFERROR(IF(E33="",C33*VLOOKUP(B33,sources!$A$6:$B$18,2,FALSE)/'Instructions & Basic Setup'!$D$28,VLOOKUP(Transport!F33,sources!$B$24:$D$35,3,FALSE)/'Instructions & Basic Setup'!$D$28/Transport!D33),"NA") -> NA | J33: =IF(E33>0,3,2) -> 2 | K33: 0
B34: Scooter | F34: (Please select) | H34: NA | I34: =IFERROR(IF(E34="",C34*VLOOKUP(B34,sources!$A$6:$B$18,2,FALSE)/'Instructions & Basic Setup'!$D$28,VLOOKUP(Transport!F34,sources!$B$24:$D$35,3,FALSE)/'Instructions & Basic Setup'!$D$28/Transport!D34),"NA") -> NA | J34: =IF(E34>0,3,2) -> 2 | K34: 0
B35: Tuk tuk | F35: (Please select) | H35: NA | I35: =IFERROR(IF(E35="",C35*VLOOKUP(B35,sources!$A$6:$B$18,2,FALSE)/'Instructions & Basic Setup'!$D$28,VLOOKUP(Transport!F35,sources!$B$24:$D$35,3,FALSE)/'Instructions & Basic Setup'!$D$28/Transport!D35),"NA") -> NA | J35: =IF(E35>0,3,1) -> 1 | K35: 0
B36: Boat | F36: (Please select) | H36: NA | I36: =IFERROR(IF(E36="",C36*VLOOKUP(B36,sources!$A$6:$B$18,2,FALSE)/'Instructions & Basic Setup'!$D$28,VLOOKUP(Transport!F36,sources!$B$24:$D$35,3,FALSE)/'Instructions & Basic Setup'!$D$28/Transport!D36),"NA") -> NA | J36: =IF(E36>0,3,1) -> 1 | K36: 0
B37: Bus | H37: NA | I37: =IFERROR(VLOOKUP(B37,sources!$A$6:$B$17,2,FALSE)*C37/$C$25,"NA") -> NA | J37: =IF(E37>0,3,1) -> 1 | K37: 0
B38: Train | H38: NA | I38: =IFERROR(VLOOKUP(B38,sources!$A$6:$B$17,2,FALSE)*C38/$C$25,"NA") -> NA | J38: =IF(E38>0,3,1) -> 1 | K38: 0
B39: Metro/ tube | H39: NA | I39: =IFERROR(C39*sources!B21*VLOOKUP(Transport!C27,sources!A38:C183,3,FALSE)/C25,"NA") -> NA | J39: 2 | K39: 0
B40: Hitchhiking | H40: NA | I40: =IFERROR(VLOOKUP(B40,sources!$A$6:$B$17,2,FALSE)*C40/$C$25,"NA") -> NA | J40: =IF(E40>0,3,3) -> 3 | K40: 0
B41: Bicycle | H41: NA | I41: =IFERROR(VLOOKUP(B41,sources!$A$6:$B$17,2,FALSE)*C41/$C$25,"NA") -> NA | J41: =IF(E41>0,3,3) -> 3 | K41: 0
B42: Walking | H42: NA | I42: =IFERROR(VLOOKUP(B42,sources!$A$6:$B$17,2,FALSE)*C42/$C$25,"NA") -> NA | J42: =IF(E42>0,3,3) -> 3 | K42: 0
B44: Main results
B45: Total km with air transport | C45: =SUM(C31:C42) -> 0 | E45: Total emissions with air transport | H45: =SUM(H31:H42) -> 0 | I45: =SUM(I31:I42) -> 0 | J45: =SUMPRODUCT(J31:J42,K31:K42) -> 0
B46: Total km witout air transport | C46: =SUM(C32:C42) -> 0 | E46: Total emissions without air transport | H46: =SUM(H32:H42) -> 0 | I46: =SUM(I32:I42) -> 0 | J46: =IFERROR(SUMPRODUCT(I32:I42,J32:J42)/SUM(I32:I42),"") -> 
B68: Positive impact and "What if ?" analysis | H68: Back to top
B70: What quantity of carbon emissions did you avoid because you took some public and carbon-free transport locally? We help you calculate the carbon emissions you avoided by choosing these means of transportation.
B74: You avoided this amount of carbon emissions… | D74: Kg of greenhouse gases per traveller | E74: % of actual carbon footprint
D75: 1 traveller | I75: =D75 -> 1 traveller | J75: 0
B76: Because you took carbon-free transport (hitchkiking, cycling, walking), you saved: | D76: =IFERROR(SUM(I32:I42)/SUM(H32:H42)*(H40+H41+H42)*C25,"NA") -> NA | E76: =IFERROR(D76/($I$45*$C$25),"NA") -> NA | G76: =B76 -> Because you took carbon-free transport (hitchkiking, cycling, walking), you saved: | I76: NA | J76: NA
B77: Because you took public transport & carbon-free over private car, you saved: | D77: =IFERROR(SUM($C$32:$C$42)*VLOOKUP($B32,sources!$A$6:$B$17,2,FALSE)-D87,"NA") -> 0 | E77: =IFERROR(D77/($I$45*$C$25),"NA") -> NA | G77: =B77 -> Because you took public transport & carbon-free over private car, you saved: | I77: 0 | J77: =#REF! -> 
G78: =B87 -> Your actual carbon footprint in kg per person over the full period of time | I78: =D87 -> 0 | J78: =E87 -> 0
G79: =CONCATENATE($B$85,B88) -> What if you had…...Used only private transport (car) | I79: =D88+D$87 -> 0
B80: What your carbon emissions would be if you had chosen another transportation means: what if you had taken only private transports locally, for example cars, cabs or motorcycles? On the other hand, what if you had taken only carbon-free transport (hitchiking, cycling, walking) all the time? We exclude air travels from these results. | G80: =CONCATENATE($B$85,B89) -> What if you had…...Used only private transport (motorcycle/ scooter) | I80: 0
G81: =CONCATENATE($B$85,B90) -> What if you had…...Used only buses | I81: 0
G82: =CONCATENATE($B$85,B91) -> What if you had…...Used only carbon-free transport (incl. Hitchhiking) | I82: 0
B85: What if you had… | D85: kg of greenhouse gases per traveller you would have saved (-) or emitted additional (+) if… | E85: % of actual carbon footprint
D86: 1 traveller
B87: Your actual carbon footprint in kg per person over the full period of time | D87: =I46*C25 -> 0
B88: ...Used only private transport (car) | D88: =IFERROR((SUM($C$32:$C$42)*VLOOKUP("Private car/ cab",sources!$A$6:$B$17,2,FALSE)-D$87),"NA") -> 0 | E88: =IFERROR(D88/($I$45*$C$25),"NA") -> NA
B89: ...Used only private transport (motorcycle/ scooter) | D89: =IFERROR((SUM($C$32:$C$42)*VLOOKUP("Motorbike",sources!$A$6:$B$17,2,FALSE)-D87),"NA") -> 0 | E89: =IFERROR(D89/($I$45*$C$25),"NA") -> NA
B90: ...Used only buses | D90: =IFERROR((SUM($C$32:$C$42)*VLOOKUP("Bus",sources!$A$6:$B$17,2,FALSE)-D87),"NA") -> 0 | E90: =IFERROR(D90/($I$45*$C$25),"NA") -> NA
B91: ...Used only carbon-free transport (incl. Hitchhiking) | D91: =IFERROR(-D87,"NA") -> 0 | E91: =IFERROR(D91/($I$45*$C$25),"NA") -> NA
B93: Red means that you would have emitted more using this option. Green means you would have saved/ avoided the emission of greenhouse gases. Orange means that the difference is too small to say, as the calculations bear a level of uncertainty.
B116: What if you had stayed home?
B118: Enter below the average distance travelled per year using each of these transportation means in the light orange cells. If you know the exact fuel consumption, enter it in columns D, E and F for more precision in the results.
D122: Optional
B123: # of people | C123: =F11 -> 0
B124: Where is home? | C124: =F13 -> (Please select)
C126: Kilometers (total for all travellers) per year | D126: Average # of people (total) in the vehicle | E126: Fuel consumption (litres) | F126: Type of fuel | H126: Kilometers per person per day | I126: Greenhouse gases (kg) per person per day | J126: Level of certainty (3=best) | K126: % of total GHGs
B127: Plane | H127: =IFERROR(C127/$C$123/365,"NA") -> NA | I127: =IFERROR(VLOOKUP(B127,sources!$A$6:$B$17,2,FALSE)*C127/$C$123/365,"NA") -> NA | J127: =IF(E127>0,3,3) -> 3 | K127: =IFERROR(I127/$I$140,0) -> 0
B128: Private car/ cab | H128: =IFERROR(C128/$C$123/365,"NA") -> NA | I128: =IFERROR(IF(E128="",C128*VLOOKUP(B128,sources!$A$6:$B$18,2,FALSE)/C123/365,VLOOKUP(Transport!F128,sources!$B$24:$D$35,3,FALSE)/D128/365),"NA") -> NA | J128: =IF(E128>0,3,2) -> 2 | K128: 0
B129: Motorbike | H129: NA | I129: =IFERROR(IF(E129="",C129*VLOOKUP(B129,sources!$A$6:$B$18,2,FALSE)/$C$123/365,VLOOKUP(Transport!F129,sources!$B$24:$D$35,3,FALSE)/D129/365),"NA") -> NA | J129: =IF(E129>0,3,2) -> 2 | K129: 0
B130: Scooter | H130: NA | I130: =IFERROR(IF(E130="",C130*VLOOKUP(B130,sources!$A$6:$B$18,2,FALSE)/$C$123/365,VLOOKUP(Transport!F130,sources!$B$24:$D$35,3,FALSE)/D130/365),"NA") -> NA | J130: =IF(E130>0,3,2) -> 2 | K130: 0
B131: Tuk tuk | H131: NA | I131: =IFERROR(IF(E131="",C131*VLOOKUP(B131,sources!$A$6:$B$18,2,FALSE)/$C$123/365,VLOOKUP(Transport!F131,sources!$B$24:$D$35,3,FALSE)/D131/365),"NA") -> NA | J131: =IF(E131>0,3,1) -> 1 | K131: 0
B132: Boat | H132: NA | I132: =IFERROR(IF(E132="",C132*VLOOKUP(B132,sources!$A$6:$B$18,2,FALSE)/$C$123/365,VLOOKUP(Transport!F132,sources!$B$24:$D$35,3,FALSE)/D132/365),"NA") -> NA | J132: =IF(E132>0,3,1) -> 1 | K132: 0
B133: Bus | H133: NA | I133: =IFERROR(VLOOKUP(B133,sources!$A$6:$B$17,2,FALSE)*C133/$C$123/365,"NA") -> NA | J133: =IF(E133>0,3,1) -> 1 | K133: 0
B134: Train | H134: NA | I134: =IFERROR(VLOOKUP(B134,sources!$A$6:$B$17,2,FALSE)*C134/$C$123/365,"NA") -> NA | J134: =IF(E134>0,3,1) -> 1 | K134: 0
B135: Metro/ tube | H135: NA | I135: =IFERROR(VLOOKUP(B135,sources!$A$6:$B$18,2,FALSE)*C135/$C$123/365,"NA") -> NA | J135: 2 | K135: 0
B136: Hitchhiking | H136: NA | I136: =IFERROR(VLOOKUP(B136,sources!$A$6:$B$17,2,FALSE)*C136/$C$123/365,"NA") -> NA | J136: =IF(E136>0,3,3) -> 3 | K136: 0
B137: Bicycle | H137: NA | I137: =IFERROR(VLOOKUP(B137,sources!$A$6:$B$17,2,FALSE)*C137/$C$123/365,"NA") -> NA | J137: =IF(E137>0,3,3) -> 3 | K137: 0
B138: Walking | H138: NA | I138: =IFERROR(VLOOKUP(B138,sources!$A$6:$B$17,2,FALSE)*C138/$C$123/365,"NA") -> NA | J138: =IF(E138>0,3,3) -> 3 | K138: 0
B140: Total | C140: =SUM(C127:C138) -> 0 | G140: Total | H140: =SUM(H127:H138) -> 0 | I140: =SUM(I127:I138) -> 0 | J140: =SUMPRODUCT(J127:J138,K127:K138) -> 0
G141: Versus… | H141: =H45 -> 0 | I141: =I45 -> 0 | J141: =J45 -> 0
B165: Socio-economic impact: What is your spend profile? | H165: Back to top
B167: What is the socio-economic impact of your choices of transportation? As a proxy we suggest analysing your spend profile. Did you give more to small businesses or large ones? Was your money spent in the local economy or on international brands? Was your money spent in an organization that seeks to have a "positive impact"?
G171: Enter all what you spent on transport over the specified period of time, for all travellers. Add as many lines as necessary.
C172: Total USD | D172: USD per person per day | E172: % | G172: Country | H172: Description | I172: Classification | J172: Business type | K172: Local/ international | L172: Positive impact? | M172: Spent ($)
B173: Small | C173: =SUMIF($E$188:$E$1048576,B173,$H$188:$H$1048576) -> 0 | D173: =IFERROR(C173/$C$123/$C$25,"NA") -> NA | E173: =IFERROR(C173/SUM(M:M),"NA") -> 0 | G173: =F12 -> (Please select) | H173: Taxi tour 1 day | I173: Transport | J173: Small | K173: Local | L173: N | M173: 100
B174: Medium | C174: =SUMIF($E$188:$E$1048576,B174,$H$188:$H$1048576) -> 0 | D174: =IFERROR(C174/$C$123/$C$25,"NA") -> NA | E174: =IFERROR(C174/SUM(M:M),"NA") -> 0 | G174: =$C$27 -> (Please select) | H174: plane ticket | I174: Transport | J174: Large | K174: International | L174: N | M174: 1000
B175: Large | C175: =SUMIF($E$188:$E$1048576,B175,$H$188:$H$1048576) -> 0 | D175: =IFERROR(C175/$C$123/$C$25,"NA") -> NA | E175: =IFERROR(C175/SUM(M:M),"NA") -> 0 | G175: (Please select) | H175: Train tickets | I175: Transport | J175: Public services | K175: Local | L175: N | M175: 100
B176: Public services | C176: =SUMIF($E$188:$E$1048576,B176,$H$188:$H$1048576) -> 0 | D176: =IFERROR(C176/$C$123/$C$25,"NA") -> NA | E176: =IFERROR(C176/SUM(M:M),"NA") -> 0 | G176: (Please select) | H176: Taxi - regulars | I176: Transport | J176: Large | K176: Local | L176: N | M176: 300
B177: Religious institutions | C177: =SUMIF($E$188:$E$1048576,B177,$H$188:$H$1048576) -> 0 | D177: =IFERROR(C177/$C$123/$C$25,"NA") -> NA | E177: =IFERROR(C177/SUM(M:M),"NA") -> 0 | G177: (Please select) | I177: Transport | J177: Large | K177: Local | L177: N
G178: (Please select) | I178: Transport | J178: Large | K178: Local | L178: N
B179: Local | C179: =SUMIF($F$188:$F$1048576,B179,$H$188:$H$1048576) -> 0 | D179: =IFERROR(C179/$C$123/$C$25,"NA") -> NA | E179: =IFERROR(C179/SUM(M:M),"NA") -> 0 | G179: (Please select) | I179: Transport | J179: Large | K179: Local | L179: N
B180: International | C180: =SUMIF($F$188:$F$1048576,B180,$H$188:$H$1048576) -> 0 | D180: =IFERROR(C180/$C$123/$C$25,"NA") -> NA | E180: =IFERROR(C180/SUM(M:M),"NA") -> 0 | G180: (Please select) | I180: Transport | J180: Large | K180: Local | L180: N
G181: (Please select) | I181: Transport | J181: Large | K181: Local | L181: N
B182: Positive impact | C182: =SUMIF($G$188:$G$1048576,B182,$H$188:$H$1048576) -> 0 | D182: =IFERROR(C182/$C$123/$C$25,"NA") -> NA | E182: =IFERROR(C182/SUM(M:M),"NA") -> 0 | G182: (Please select) | I182: Transport | J182: Large | K182: Local | L182: N
B183: Conventional | E183: =1-E182 -> 1
B184: Total | C184: =SUM(C173:C177) -> 0 | D184: =IFERROR(C184/$C$17/$C$18, "NA") -> NA
B186: Enter all what you spent on transport over the specified period of time, for all travellers. Add as many lines as necessary.
B187: Country | C187: Description | D187: Classification | E187: Business type | F187: Local/ international | G187: Positive impact? | H187: Spent ($)
B188: ='Instructions & Basic Setup'!$D$30 -> (Please select) | D188: Transport | E188: (Please select) | F188: (Please select) | G188: (Please select)
B189: ='Instructions & Basic Setup'!$D$30 -> (Please select) | D189: Transport | E189: (Please select) | F189: (Please select) | G189: (Please select)
B190: ='Instructions & Basic Setup'!$D$30 -> (Please select) | D190: Transport | E190: (Please select) | F190: (Please select) | G190: (Please select)
B191: ='Instructions & Basic Setup'!$D$30 -> (Please select) | D191: Transport | E191: (Please select) | F191: (Please select) | G191: (Please select)
B192: ='Instructions & Basic Setup'!$D$30 -> (Please select) | D192: Transport | E192: (Please select) | F192: (Please select) | G192: (Please select)
B193: ='Instructions & Basic Setup'!$D$30 -> (Please select) | D193: Transport | E193: (Please select) | F193: (Please select) | G193: (Please select)
B194: ='Instructions & Basic Setup'!$D$30 -> (Please select) | D194: Transport | E194: (Please select) | F194: (Please select) | G194: (Please select)
B195: ='Instructions & Basic Setup'!$D$30 -> (Please select) | D195: Transport | E195: (Please select) | F195: (Please select) | G195: (Please select)
B196: ='Instructions & Basic Setup'!$D$30 -> (Please select) | D196: Transport | E196: (Please select) | F196: (Please select) | G196: (Please select)

Sheet Accommodation
B1: Accomodation: your money does not sleep | F1: Powered by Impact Wanderers
E8: # of days | F8: ='Instructions & Basic Setup'!D28 -> 0
B9: Environmental impact | E9: # of travellers | F9: ='Instructions & Basic Setup'!D29 -> 0
B10: Socio-economic impact | E10: Country | F10: ='Instructions & Basic Setup'!D30 -> (Please select)
B11: Results | E11: Where is home? | F11: ='Instructions & Basic Setup'!D31 -> (Please select)
E12: If you need to modify information on your travel, please do it here:
B13: Environmental impact: focus on "special situations" | H13: Back to top
B15: # of days | C15: =F8 -> 0
B16: # of travellers | C16: =F9 -> 0
B17: Country | C17: =F10 -> (Please select)
B19: We identify "special situations" (either in the positive or negative) and assess them by assigning them a high-level bonus/malus score. For example, we stayed in a few places where electricity was 100% renewable, thereby saving carbon emissions. We assign a bonus of 4 out of 5. In addition, we need to take into account the context: saving energy is far more important from an climate change perspective in a country where the energy mix is very carbon-intensive. We include an index to shed light on this, with 100 the worst situation and 0 the worst.
B22: Instructions: fill in the orange cells
B23: # of nights spent…: | E23: Rationale | G23: Bonus/malus | J23: Bonus/malus
B24: … camping/ no electricity | D24: NA | E24: … thereby not emitting greenhouse gases linked to energy use. | G24: 0 | J24: 1
B25: … couchsurfing | D25: NA | G25: 1 | J25: 2
B26: … in places running on 80+% renewable energy | D26: NA | G26: 0 | J26: 2
B27: … dorms | D27: NA | E27: Dorms and homestays tend to use less energy than hotels, given that you share the common areas/ rooms with more people. | G27: 2 | J27: 3
B28: … homestays | D28: NA | G28: 3 | J28: 3
B29: … mid-range hotels | D29: NA | E29: These hotels tend to use more energy and water per client (more space, lights, swimming pool, towels…) | G29: 3 | J29: 4
B30: … high-end hotels | D30: NA | G30: 5 | J30: 5
B32: Bonus/malus (5=worst; 1=best) | D32: =IFERROR(SUMPRODUCT(J24:J30,D24:D30)/SUM(D24:D30),"NA") -> NA | E32: Weighted average
B33: Country GHGs index (0=best; 100=worst) | D33: =IFERROR(VLOOKUP(C17,sources!$A$38:$E$183,5,FALSE),"NA") -> NA | E33: Saving energy is even more important in countries with a high GHG intensity of electricity.
B36: Socio-economic impact: What is your spend profile? | H36: Back to top
B38: What is the socio-economic impact of your choices of accomodation? As a proxy we suggest analysing your spend profile. Did you give more to small businesses or large ones? Was your money spent in the local economy or on international brands? Was your money spent in an organization that seeks to have a "positive impact"?
B42: Instructions: Check the results below after filling the light orange cells on the right. | G42: Enter all what you spent on accomodation over the specified period of time, for all travellers. Add as many lines as necessary.
C43: Total USD | D43: USD per person per day | E43: % | G43: Country | H43: Description | I43: Classification | J43: Business type | K43: Local/ international | L43: Positive impact? | M43: Spent (US $)
B44: Small | C44: =SUMIF($E$59:$E$497,B44,H$59:$H$497) -> 0 | D44: =IFERROR(C44/$C$15/$C$16, "NA") -> NA | E44: =IFERROR(D44/SUM($D$44:$D$48),"NA") -> NA | G44: =$C$17 -> (Please select) | H44: camping | I44: Accomodation | J44: Medium | K44: Local | L44: N | M44: 20
B45: Medium | C45: =SUMIF($E$59:$E$497,B45,H$59:$H$497) -> 0 | D45: =IFERROR(C45/$C$15/$C$16, "NA") -> NA | E45: =IFERROR(D45/SUM($D$44:$D$48),"NA") -> NA | G45: (Please select) | H45: Eco tourism | I45: Accomodation | J45: Medium | K45: Local | L45: N | M45: 100
B46: Large | C46: =SUMIF($E$59:$E$497,B46,H$59:$H$497) -> 0 | D46: NA | E46: NA | G46: (Please select) | H46: Homestay | I46: Accomodation | J46: Small | K46: Local | L46: N | M46: 30
B47: Public services | C47: =SUMIF($E$59:$E$497,B47,H$59:$H$497) -> 0 | D47: NA | E47: NA | G47: (Please select) | H47: 3 mid-range H | I47: Accomodation | J47: Large | K47: Local | L47: N | M47: 150
B48: Religious institutions | C48: =SUMIF($E$59:$E$497,B48,H$59:$H$497) -> 0 | D48: NA | E48: NA | G48: (Please select) | H48: 4 High end | I48: Accomodation | J48: Large | K48: Local | L48: N | M48: 400
G49: (Please select) | I49: Accomodation | J49: Large | K49: Local | L49: N
B50: Local | C50: =SUMIF($F$59:$F$497,B50,H$59:$H$497) -> 0 | D50: NA | E50: =IFERROR(D50/SUM($D$50:$D$51),"NA") -> NA | G50: (Please select) | I50: Accomodation | J50: Large | K50: Local | L50: N
B51: International | C51: =SUMIF($F$59:$F$497,B51,H$59:$H$497) -> 0 | D51: NA | E51: =IFERROR(D51/SUM($D$50:$D$51),"NA") -> NA | G51: (Please select) | I51: Accomodation | J51: Large | K51: Local | L51: N
G52: (Please select) | I52: Accomodation | J52: Large | K52: Local | L52: N
B53: Positive impact | C53: =SUMIF($G$59:$G$497,"Y",H$59:$H$497) -> 0 | D53: NA | E53: =IFERROR(D53/D55,"NA") -> NA | G53: (Please select) | I53: Accomodation | J53: Large | K53: Local | L53: N
B54: Conventional | C54: =C55-C53 -> 0 | G54: (Please select) | I54: Accomodation | J54: Large | K54: Local | L54: N
B55: Total | C55: =SUM(C44:C48) -> 0 | D55: NA | G55: (Please select) | I55: Accomodation | J55: Large | K55: Local | L55: N
B57: Enter all what you spent on accomodation over the specified period of time, for all travellers. Add as many lines as necessary.
B58: Country | C58: Description | D58: Classification | E58: Business type | F58: Local/ international | G58: Positive impact? | H58: Spent (US $)
B59: =$C$17 -> (Please select) | D59: Accomodation | E59: (Please select) | F59: (Please select) | G59: (Please select)
B60: (Please select) | D60: Accomodation | E60: (Please select) | F60: (Please select) | G60: (Please select)
B61: (Please select) | D61: Accomodation | E61: (Please select) | F61: (Please select) | G61: (Please select)
B62: (Please select) | D62: Accomodation | E62: (Please select) | F62: (Please select) | G62: (Please select)
B63: (Please select) | D63: Accomodation | E63: (Please select) | F63: (Please select) | G63: (Please select)
B64: (Please select) | D64: Accomodation | E64: (Please select) | F64: (Please select) | G64: (Please select)
B65: (Please select) | D65: Accomodation | E65: (Please select) | F65: (Please select) | G65: (Please select)
B66: (Please select) | D66: Accomodation | E66: (Please select) | F66: (Please select) | G66: (Please select)
B67: (Please select) | D67: Accomodation | E67: (Please select) | F67: (Please select) | G67: (Please select)
B68: (Please select) | D68: Accomodation | E68: (Please select) | F68: (Please select) | G68: (Please select)
B69: (Please select) | D69: Accomodation | E69: (Please select) | F69: (Please select) | G69: (Please select)
B70: (Please select) | D70: Accomodation | E70: (Please select) | F70: (Please select) | G70: (Please select)
B71: (Please select) | D71: Accomodation | E71: (Please select) | F71: (Please select) | G71: (Please select)
B72: (Please select) | D72: Accomodation | E72: (Please select) | F72: (Please select) | G72: (Please select)

Sheet Consumption and waste
B1: Consumption and waste: you are what you buy (and waste…) | G1: Powered by Impact Wanderers
E8: Your travel:
B9: Environmental impact | E9: # of days | F9: ='Instructions & Basic Setup'!D28 -> 0
B10: Focus on plastic waste | E10: # of travellers | F10: ='Instructions & Basic Setup'!D29 -> 0
B11: Focus on food | E11: Country | F11: ='Instructions & Basic Setup'!D30 -> (Please select)
B12: Socio-economic impact | E12: Where is home? | F12: ='Instructions & Basic Setup'!D31 -> (Please select)
B13: Results | E13: If you need to modify information on your travel, please do it here:
B15: Environmental impact: focus on plastic waste and food | F15: Back to top
B17: Consumption of food and souvenirs can have a wide range of environmental impact, through waste but also the resources needed and the pollution generated by their production. While it is possible to quantify the carbon, water, biodiversity and pollution footprint of consumption, it is time-consuming and necessitates a large amount of data. Therefore, we adopt here an intermediate approach, where we focus on the amount of plastic waste generated and the type of food consumed.
B20: Focus on plastic waste
B22: In certain countries, a traveller may generate much more plastic waste than at home, because of the straws, plastic bottles etc. Minimizing one's plastic footprint (and more broadly waste) is particularly important as many countries do not have a proper waste collection and management system in place.
C24: Instructions: fill in the light orange cells | E24: Optional
C25: # bought/ consumed while travelling (approximation) for all travellers | D25: Estimated weight (kg) | E25: # bought/ consumed while at home, over the same period of time (approximation) | F25: Estimated weight (kg)
B26: # of plastic cups | D26: =15/1000*C26 -> 0 | E26: NA | F26: =IFERROR(15/1000*E26,"NA") -> NA
B27: # of plastic bags | D27: =5/1000*C27 -> 0 | E27: NA | F27: =IFERROR(5/1000*E27,"NA") -> NA
B28: # straws | D28: =C28*10/1000 -> 0 | E28: NA | F28: =IFERROR(E28*10/1000,"NA") -> NA
B29: # of plastic bottles (33 cl) | D29: =10*33/50/1000*C29 -> 0 | E29: NA | F29: =IFERROR(10*33/50/1000*E29,"NA") -> NA
B30: # of plastic bottles (1L) | D30: =10*100/50/1000*C30 -> 0 | E30: NA | F30: =IFERROR(10*100/50/1000*E30,"NA") -> NA
B31: # of plastic bottles (1.5l) | D31: =10*150/50/1000*C31 -> 0 | E31: NA | F31: =IFERROR(10*150/50/1000*E31,"NA") -> NA
B32: # of plastic bottles (5l) | D32: =10*500/50/1000*C32 -> 0 | E32: NA | F32: =IFERROR(10*500/50/1000*E32,"NA") -> NA
B33: # of bottle refills (in litres) | D33: =-10*100/50/1000*C33 -> 0 | E33: NA | F33: =IFERROR(-10*100/50/1000*E33,"NA") -> NA
D35: While travelling | F35: While at home
B36: Total plastic use and waste (kg, over full period) | D36: =SUM(D26:D32) -> 0 | F36: =SUM(F26:F32) -> 0
B37: Plastic waste avoided (kg, total over full period) | D37: =D33 -> 0 | F37: =F33 -> NA
B38: Country waste management index (0=best; 100=worst)
B40: Focus on food
B42: Your food choices may have a substantial environmental impact, whether it is on carbon emissions, water use or biodiversity losses. It is difficult to calculate precisely in kg of carbon or cubic meter of water the environmental impact of your food - therefore we focus on practices (did you eat mostly vegetarian meals?) as a proxy.
D44: Optional
C45: % of meals that are...; while travelling | D45: % of meals that are...; while at home | E45: Rationale
B46: % of meals vegetarian | C46: Fill in | D46: Fill in | E46: Tend to have a lower environmental footprint.
B47: % of meals non-vegetarian | C47: Fill in | D47: Fill in
B48: % of meals organic | C48: Fill in | D48: Fill in | E48: Tend to have a lower environmental footprint.
B49: % of meals non-organic | C49: Fill in | D49: Fill in
B51: If you want to refine the analysis, feel in the light orange cells below. It will calculate the weighted average environmental score of the type of food you consume. Should you want to compare it with your diet at home, please feel in the second column too. Indeed, tourists tend to eat less sustainable products and more meat while travelling.
C54: Optional | D54: Optional
C55: # of meals that contain… ; while travelling | D55: # of meals that contain… ; while at home (over the same period of time) | E55: Environmental score (5=Worst)
B56: Beef | E56: 5
B57: Cheese | E57: 4
B58: Fish | E58: 4
B59: Poultry | E59: 3
B60: Legumes (lentils, chickpeas…) | E60: 2
B61: Eggs | E61: 2
B62: Sweets | E62: 1
B63: Cereals | E63: 1
B64: Yogurt | E64: 1
B65: Pasta | E65: 1
B66: Rice | E66: 1
B67: Bread | E67: 1
B68: Milk and dairy | E68: 1
B69: Fruits and veggies | E69: 0
B71: Environmental score; Weighted average (5=worst) | C71: =IFERROR(SUMPRODUCT(C56:C69,$E$56:$E$69)/SUM(C56:C69),"NA") -> NA | D71: =IFERROR(SUMPRODUCT(D56:D69,$E$56:$E$69)/SUM(D56:D69),"NA") -> NA
B74: Socio-economic impact: What is your spend profile? | H74: Back to top
B76: # of days | C76: =F9 -> 0 | G76: Please enter in the below pagele what you spent on food, beverages, souvenirs, toilettries and other tangible items over the specified period of time. Add as many lines as necessary.
B77: # of travellers | C77: =F10 -> 0
B78: What is the socio-economic impact of your choices of accomodation? As a proxy we suggest analysing your spend profile. Did you give more to small businesses or large ones? Was your money spent in the local economy or on international brands? Was your money spent in an organization that seeks to have a "positive impact"?
B82: Instructions: Check the results below after filling the light orange cells on the right. | G82: Enter all what you spent on shopping, food & bev over the specified period of time, for all travellers. Add as many lines as necessary.
C83: Total USD | D83: USD per person per day | E83: % | G83: Country | H83: Description | I83: Classification | J83: Business type | K83: Local/ international | L83: Positive impact? | M83: Spent ($)
B84: Small | C84: =SUMIF($E$100:$E$503,$B84,$H$100:$H$503) -> 0 | D84: =IFERROR(C84/$C$76/$C$77,"NA") -> NA | E84: =IFERROR(C84/SUM($C$84:$C$88),"NA") -> NA | G84: =$F$11 -> (Please select) | H84: Resto | I84: Food & Bev | J84: Medium | K84: Local | L84: N | M84: 300
B85: Medium | C85: =SUMIF($E$100:$E$503,$B85,$H$100:$H$503) -> 0 | D85: =IFERROR(C85/$C$76/$C$77,"NA") -> NA | E85: =IFERROR(C85/SUM($C$84:$C$88),"NA") -> NA | G85: =$F$11 -> (Please select) | H85: Restos Hilton | I85: Food & Bev | J85: Large | K85: Local | L85: N | M85: 500
B86: Large | C86: =SUMIF($E$100:$E$503,$B86,$H$100:$H$503) -> 0 | D86: NA | E86: NA | G86: (Please select) | H86: Souvenirs | I86: Shopping | J86: Small | K86: Local | L86: N | M86: 150
B87: Public services | C87: =SUMIF($E$100:$E$503,$B87,$H$100:$H$503) -> 0 | D87: NA | E87: NA | G87: (Please select) | I87: (Please select) | J87: Small | K87: Local | L87: N
B88: Religious institutions | C88: =SUMIF($E$100:$E$503,$B88,$H$100:$H$503) -> 0 | D88: NA | E88: NA | G88: (Please select) | I88: (Please select) | J88: Small | K88: Local | L88: N
G89: (Please select) | I89: (Please select) | J89: Small | K89: Local | L89: N
B90: Local | C90: =SUMIF($F$100:$F$503,$B90,$H$100:$H$503) -> 0 | D90: =IFERROR(C90/$C$76/$C$77,"NA") -> NA | E90: =IFERROR(C90/SUM($C$90:$C$91),"NA") -> NA | G90: (Please select) | I90: (Please select) | J90: Small | K90: Local | L90: N
B91: International | C91: =SUMIF($F$100:$F$503,$B91,$H$100:$H$503) -> 0 | D91: =IFERROR(C91/$C$76/$C$77,"NA") -> NA | E91: =IFERROR(C91/SUM($C$90:$C$91),"NA") -> NA | G91: (Please select) | I91: (Please select) | J91: Small | K91: Local | L91: N
G92: (Please select) | I92: (Please select) | J92: Small | K92: Local | L92: N
B93: Positive impact | C93: =SUMIF($G$100:$G$503,"Y",$H$100:$H$503) -> 0 | D93: =IFERROR(C93/$C$76/$C$77,"NA") -> NA | E93: =IFERROR(C93/SUM(M:M),"NA") -> 0 | G93: (Please select) | I93: (Please select) | J93: Small | K93: Local | L93: N
B94: Conventional | C94: =C95-C93 -> 0 | G94: (Please select) | I94: (Please select) | J94: Small | K94: Local | L94: N
B95: Total | C95: =SUM(C84:C88) -> 0 | D95: =IFERROR(C95/$C$76/$C$77,"NA") -> NA | G95: (Please select) | I95: (Please select) | J95: Small | K95: Local | L95: N
B98: Enter all what you spent on shopping, food & bev over the specified period of time, for all travellers. Add as many lines as necessary.
B99: Country | C99: Description | D99: Classification | E99: Business type | F99: Local/ international | G99: Positive impact? | H99: Spent ($)
B100: =$F$11 -> (Please select) | D100: (Please select) | E100: (Please select) | F100: (Please select) | G100: (Please select)
B101: (Please select) | D101: (Please select) | E101: (Please select) | F101: (Please select) | G101: (Please select)
B102: (Please select) | D102: (Please select) | E102: (Please select) | F102: (Please select) | G102: (Please select)
B103: (Please select) | D103: (Please select) | E103: (Please select) | F103: (Please select) | G103: (Please select)
B104: (Please select) | D104: (Please select) | E104: (Please select) | F104: (Please select) | G104: (Please select)
B105: (Please select) | D105: (Please select) | E105: (Please select) | F105: (Please select) | G105: (Please select)
B106: (Please select) | D106: (Please select) | E106: (Please select) | F106: (Please select) | G106: (Please select)
B107: (Please select) | D107: (Please select) | E107: (Please select) | F107: (Please select) | G107: (Please select)
B108: (Please select) | D108: (Please select) | E108: (Please select) | F108: (Please select) | G108: (Please select)
B109: (Please select) | D109: (Please select) | E109: (Please select) | F109: (Please select) | G109: (Please select)
B110: (Please select) | D110: (Please select) | E110: (Please select) | F110: (Please select) | G110: (Please select)
B111: (Please select) | D111: (Please select) | E111: (Please select) | F111: (Please select) | G111: (Please select)
B112: (Please select) | D112: (Please select) | E112: (Please select) | F112: (Please select) | G112: (Please select)
B113: (Please select) | D113: (Please select) | E113: (Please select) | F113: (Please select) | G113: (Please select)
B114: (Please select) | D114: (Please select) | E114: (Please select) | F114: (Please select) | G114: (Please select)

Sheet Leisure
B1: Leisure: have fun with you money | H1: Powered by Impact Wanderers
B8: Socio-economic impact: What is your spend profile?
B10: What is the socio-economic impact of your leisure? This is very hard to evaluate, but as a proxy we suggest analysing your spend profile. Did you give more to small businesses or large ones? Was your money spent in the local economy or on international brands? Was your money spent in an organization that seeks to have a "positive impact"?
B14: # of days | C14: ='Instructions & Basic Setup'!D28 -> 0
B15: # of travellers | C15: ='Instructions & Basic Setup'!D29 -> 0
B16: Country | C16: ='Instructions & Basic Setup'!D30 -> (Please select)
B18: Instructions: Check the results below after filling the light orange cells on the right. | G18: Enter all what you spent on leisure over the specified period of time, for all travellers. Add as many lines as necessary.
C19: Total USD | D19: USD per person per day | E19: % | G19: Country | H19: Description | I19: Classification | J19: Business type | K19: Local/ international | L19: Positive impact? | M19: Spent ($)
B20: Small | C20: =SUMIF($E$35:$E$500,$B20,$H$35:$H$500) -> 0 | D20: =IFERROR(C20/$C$14/$C$15,"NA") -> NA | E20: =IFERROR(D20/SUM($D$20:$D$24),"NA") -> NA | G20: =$C$16 -> (Please select) | H20: prostitutes | I20: Leisure | J20: Medium | K20: Local | L20: N | M20: 500
B21: Medium | C21: =SUMIF($E$35:$E$500,$B21,$H$35:$H$500) -> 0 | D21: =IFERROR(C21/$C$14/$C$15,"NA") -> NA | E21: =IFERROR(D21/SUM($D$20:$D$24),"NA") -> NA | G21: =$C$16 -> (Please select) | H21: surf | I21: Leisure | J21: Medium | K21: Local | L21: N | M21: 50
B22: Large | C22: =SUMIF($E$35:$E$500,$B22,$H$35:$H$500) -> 0 | D22: NA | E22: NA | G22: (Please select) | H22: Safari | I22: Leisure | J22: Medium | K22: Local | L22: N | M22: 200
B23: Public services | C23: =SUMIF($E$35:$E$500,$B23,$H$35:$H$500) -> 0 | D23: NA | E23: NA | G23: (Please select) | I23: Leisure | J23: Medium | K23: Local | L23: N
B24: Religious institutions | C24: =SUMIF($E$35:$E$500,$B24,$H$35:$H$500) -> 0 | D24: NA | E24: NA | G24: (Please select) | I24: Leisure | J24: Medium | K24: Local | L24: N
G25: (Please select) | I25: Leisure | J25: Medium | K25: Local | L25: N
B26: Local | C26: =SUMIF($F$35:$F$500,$B26,$H$35:$H$500) -> 0 | D26: =IFERROR(C26/$C$14/$C$15,"NA") -> NA | E26: =IFERROR(D26/SUM($D$26:$D$27),"NA") -> NA | G26: (Please select) | I26: Leisure | J26: Medium | K26: Local | L26: N
B27: International | C27: =SUMIF($F$35:$F$500,$B27,$H$35:$H$500) -> 0 | D27: =IFERROR(C27/$C$14/$C$15,"NA") -> NA | E27: =IFERROR(D27/SUM($D$26:$D$27),"NA") -> NA | G27: (Please select) | I27: Leisure | J27: Medium | K27: Local | L27: N
G28: (Please select) | I28: Leisure | J28: Medium | K28: Local | L28: N
B29: Positive impact | C29: =SUMIF($G$35:$G$500,"Y",$H$35:$H$500) -> 0 | D29: =IFERROR(C29/$C$14/$C$15,"NA") -> NA | E29: =IFERROR(D29/D31,"NA") -> NA | G29: (Please select) | I29: Leisure | J29: Medium | K29: Local | L29: N
B30: Conventional | C30: =C31-C29 -> 0 | G30: (Please select) | I30: Leisure | J30: Medium | K30: Local | L30: N
B31: Total | C31: =SUM(C20:C24) -> 0 | D31: =IFERROR(C31/$C$14/$C$15,"NA") -> NA | G31: (Please select) | I31: Leisure | J31: Medium | K31: Local | L31: N
B33: Enter all what you spent on leisure over the specified period of time, for all travellers. Add as many lines as necessary.
B34: Country | C34: Description | D34: Classification | E34: Business type | F34: Local/ international | G34: Positive impact? | H34: Spent ($)
B35: =$C$16 -> (Please select) | D35: Leisure | E35: (Please select) | F35: (Please select) | G35: (Please select)
B36: =$C$16 -> (Please select) | D36: Leisure | E36: (Please select) | F36: (Please select) | G36: (Please select)
B37: (Please select) | D37: Leisure | E37: (Please select) | F37: (Please select) | G37: (Please select)
B38: (Please select) | D38: Leisure | E38: (Please select) | F38: (Please select) | G38: (Please select)
B39: (Please select) | D39: Leisure | E39: (Please select) | F39: (Please select) | G39: (Please select)
B40: (Please select) | D40: Leisure | E40: (Please select) | F40: (Please select) | G40: (Please select)
B41: (Please select) | D41: Leisure | E41: (Please select) | F41: (Please select) | G41: (Please select)
B42: (Please select) | D42: Leisure | E42: (Please select) | F42: (Please select) | G42: (Please select)
B43: (Please select) | D43: Leisure | E43: (Please select) | F43: (Please select) | G43: (Please select)
B44: (Please select) | D44: Leisure | E44: (Please select) | F44: (Please select) | G44: (Please select)
B45: (Please select) | D45: Leisure | E45: (Please select) | F45: (Please select) | G45: (Please select)
B46: (Please select) | D46: Leisure | E46: (Please select) | F46: (Please select) | G46: (Please select)
B84: Environmental impact

Sheet Volunteering
B1: Volunteering: how did you spend your time? | H1: Powered by Impact Wanderers
B9: In this section, we assess the positive impact of volunteering activities. We leave it to you to determine whether what you did can be classified as having a "positive impact". For exemple, in our case, we consider that a volunteering experience on an organic or permaculture farm could be classified as "positive impact". However, we do not include experiences such as helping in hostels with no environmental or social purpose.
B13: It is hard to determine whether a particular volunteering experience really had a positive impact. We leave it to you to determine this, as you know better than anybody else! However, as a guidance, here are some of the criteria that we use to determine whether our own volunteering may have had a "positive impact":
B14: The organisation has an environmental or social purpose.
B15: You performed tasks in which you were "operational" right away (e.g. distributing food) or stayed a longer time in the organisation (> one month)
B16: If you worked directly with kids or people, you stayed at least 3 months.
B17: You did not perform a task that a local person could have done, for a salary.
B19: In some organizations, volunteers are asked to pay. We consider this money to have "positive impact" but classify it under the categories "Accomodation" and "Consumption & Waste". For example, in Cambodia we paid 5 USD per day per person. We considered that 50% of the money was for food and the other for accomodation and therefore included them in the socio-economic impact on the relevant pages.
B21: Your travel:
B22: # of days | C22: ='Instructions & Basic Setup'!D28 -> 0
B23: # of travellers | C23: ='Instructions & Basic Setup'!D29 -> 0
B24: Country | C24: ='Instructions & Basic Setup'!D30 -> (Please select)
B25: If you need to modify information on your travel, please do it here:
B27: Instructions: Fill in the light orange cells below.
B28: Name of the project | C28: # of full-days volunteering per person
B33: Total # of days | C33: =SUM(C29:C31) -> 0
B34: % time volunteering | C34: =IFERROR(C33/C22,"NA") -> NA

Sheet Dashboard - Results
B1: Summary results: Your dashboard | G1: Powered by Impact Wanderers
B9: On this page, you can see a summary of all the main results in each impact category.
B10: Just follow the footprints to go to the relevant section to get the details.
B11: No need to fill anything on this page - just check out the results!
B13: =CONCATENATE("Overall results for your travel in"," ", 'Instructions & Basic Setup'!D30) -> Overall results for your travel in (Please select)
B15: Your overall scores: 5 = worst, 0 = best | F15: Your performance while travelling | G15: Compared with home (where available) | K15: While travelling | L15: While at home
B16: Socio-economic impact: Spend profile | F16: =IFERROR(IF(H16=0,5,IF(H16<0.2,4,IF(H16<0.4,3,IF(H16<0.6,2,IF(H16<0.8,1,0))))),"NA") -> NA | G16: NA | H16: =0.33*D47+0.33*J46+0.33*K46 ->  | J16: Spend | K16: =F16 -> NA | L16: =G16 -> NA | M16: 4.5 | N16: 3.5 | O16: 2.5 | P16: 1.5 | Q16: 0.5
B17: Socio-economic impact: Volunteering | F17: =IF(D97=0,5,IF(D97<0.2,4,IF(D97<0.4,3,IF(D97<0.6,2,IF(D97<0.8,1,IF(D97<1,0,IF(D97=1,0,"NA"))))))) -> NA | G17: NA | J17: Volunteering | K17: =F17 -> NA | L17: NA | M17: 4.5 | N17: 3.5 | O17: 2.5 | P17: 1.5 | Q17: 0.5
B18: Environmental impact: Greenhouse gases from transport | F18: =IFERROR(IF(H18>1,5,IF(AND(H18=0,D120=0),"NA",IF(H18=0,0,IF(H18<0.5,1,IF(H18<0.7,2,IF(H18<0.8,3,IF(H18<1,4))))))),"NA") -> NA | G18: =IFERROR(IF(I18>1,5,IF(AND(I18=0,F120=0),"NA",IF(I18=0,0,IF(I18<0.5,1,IF(I18<0.7,2,IF(I18<0.8,3,IF(I18<1,4))))))),"NA") -> NA | H18: =E120/(3000/365) ->  | I18: =G120/(3000/365) ->  | J18: Transport | K18: NA | L18: NA | M18: 4.5 | N18: 3.5 | O18: 2.5 | P18: 1.5 | Q18: 0.5
B19: Environmental impact: Plastic waste | F19: =IF(E188=0,0,IF(E188<20,1,IF(E188<40,2,IF(E188<60,3,IF(E188<80,4,IF(E188="NA","NA",5)))))) -> NA | G19: =IF(G188=0,"NA",IF(G188<19,0,IF(G188<20,1,IF(G188<40,2,IF(G188<60,3,IF(G188<80,4,IF(G188="NA","NA",5))))))) -> NA | H19: =IFERROR(IF($E$187>0.5,$E$185/'Instructions & Basic Setup'!$D$28/'Instructions & Basic Setup'!$D$29*100/(1*10*100/50/1000),$E$185/'Instructions & Basic Setup'!$D$28/'Instructions & Basic Setup'!$D$29*100/(1*10*100/50/1000)*($E$187*2)),"NA") -> NA | I19: =IFERROR(IF($G$187>0.5,$G$185/'Instructions & Basic Setup'!$D$28/'Instructions & Basic Setup'!$D$29*100/(2*10*100/50/1000),$G$185/'Instructions & Basic Setup'!$D$28/'Instructions & Basic Setup'!$D$29*100/(2*10*100/50/1000)*($G$187*2)),"NA") -> NA | J19: Plastic | K19: NA | L19: NA | M19: 4.5 | N19: 3.5 | O19: 2.5 | P19: 1.5 | Q19: 0.5
B20: Environmental impact: Food choices | F20: =IF(H20=0,5,IF(H20<0.2,4,IF(H20<0.4,3,IF(H20<0.6,2,IF(H20<0.8,1,IF(H20="Fill in","NA",0)))))) -> NA | G20: =IF(I20=0,5,IF(I20<0.2,4,IF(I20<0.4,3,IF(I20<0.6,2,IF(I20<0.8,1,IF(I20="Fill in","NA",0)))))) -> NA | H20: =IF(D203="NA",IF($D$198>$D$200,$D$198,$D$200),D203) -> Fill in | I20: =IF(E203="NA",IF($E$198>$E$200,$E$198,$E$200),E203) -> Fill in | J20: Food | K20: NA | L20: NA | M20: 4.5 | N20: 3.5 | O20: 2.5 | P20: 1.5 | Q20: 0.5
B21: Environmental impact: Accommodation choices | F21: =IFERROR(ROUND(E229,0),"NA") -> NA | G21: NA | J21: Accommodation | K21: NA | L21: NA | M21: 4.5 | N21: 3.5 | O21: 2.5 | P21: 1.5 | Q21: 0.5
B31: 1. Socio-economic impact: Spend profile | H31: Back to top
B33: =F15 -> Your performance while travelling | D33: =F16 -> NA | F33: =IF(D33=5,"A score of 5 means that you spent between 0% of your money in small, local or positive impact organisations.", IF(D33=4,"A score of 4 means that you spent less than 20% of your money in small, local or positive impact organisations.",IF(D33=3,"A score of 3 means that you spent between 20 and 40% of your money in small, local or positive impact organisations.",IF(D33=2,"A score of 2 means that you spent between 40 and 60% of your money in small, local or positive impact organisations.",IF(D33=1,"A score of 1 means that you spent between 60 and 80% of your money in small, local or positive impact organisations.","A score of 0 means that you spent over 80% of your money in small, local or positive impact organisations."))))) -> A score of 0 means that you spent over 80% of your money in small, local or positive impact organisations.
B34: Compared with home | D34: =G16 -> NA
B36: What is the socio-economic impact of your money? As an (imperfect) proxy we suggest analysing your spend profile. Did you give more to small businesses or large ones? Was your money spent in the local economy or on international brands? Was your money spent in an organization that seeks to have a "positive impact" (social and/or environmental)?
D40: Small | E40: Medium | F40: Large | G40: Public services | H40: Religious Institutions | I40: Total | J40: % positive impact | K40: % local
B41: USD per day per person | C41: Accommodation | D41: =IFERROR(SUMIF(Accommodation!$E$59:$E$497,D$40,Accommodation!$H$59:$H$497)/'Instructions & Basic Setup'!$D$28/'Instructions & Basic Setup'!$D$29,"NA") -> NA | E41: =IFERROR(SUMIF(Accommodation!$E$59:$E$497,E$40,Accommodation!$H$59:$H$497)/'Instructions & Basic Setup'!$D$28/'Instructions & Basic Setup'!$D$29,"NA") -> NA | F41: =IFERROR(SUMIF(Accommodation!$E$59:$E$497,F$40,Accommodation!$H$59:$H$497)/'Instructions & Basic Setup'!$D$28/'Instructions & Basic Setup'!$D$29,"NA") -> NA | G41: =IFERROR(SUMIF(Accommodation!$E$59:$E$497,G$40,Accommodation!$H$59:$H$497)/'Instructions & Basic Setup'!$D$28/'Instructions & Basic Setup'!$D$29,"NA") -> NA | H41: =IFERROR(SUMIF(Accommodation!$E$59:$E$497,H$40,Accommodation!$H$59:$H$497)/'Instructions & Basic Setup'!$D$28/'Instructions & Basic Setup'!$D$29,"NA") -> NA | I41: =SUM(D41:H41) -> 0 | J41: =IFERROR(SUMIF(Accommodation!$G$59:$G$497,"Y",Accommodation!$H$59:$H$497)/'Instructions & Basic Setup'!$D$28/'Instructions & Basic Setup'!$D$29/$I41,"NA") -> NA | K41: =IFERROR(SUMIF(Accommodation!$F$59:$F$497,"Local",Accommodation!$H$59:$H$497)/'Instructions & Basic Setup'!$D$28/'Instructions & Basic Setup'!$D$29/$I41,"NA") -> NA
C42: Food & Bev | D42: =IFERROR(SUMIFS('Consumption and waste'!$H$100:$H$1004,'Consumption and waste'!$E$100:$E$1004,D$40,'Consumption and waste'!$D$100:$D$1004,$C42)/'Instructions & Basic Setup'!$D$28/'Instructions & Basic Setup'!$D$29,"NA") -> NA | E42: =IFERROR(SUMIFS('Consumption and waste'!$H$100:$H$1004,'Consumption and waste'!$E$100:$E$1004,E$40,'Consumption and waste'!$D$100:$D$1004,$C42)/'Instructions & Basic Setup'!$D$28/'Instructions & Basic Setup'!$D$29,"NA") -> NA | F42: =IFERROR(SUMIFS('Consumption and waste'!$H$100:$H$1004,'Consumption and waste'!$E$100:$E$1004,F$40,'Consumption and waste'!$D$100:$D$1004,$C42)/'Instructions & Basic Setup'!$D$28/'Instructions & Basic Setup'!$D$29,"NA") -> NA | G42: =IFERROR(SUMIFS('Consumption and waste'!$H$100:$H$1004,'Consumption and waste'!$E$100:$E$1004,G$40,'Consumption and waste'!$D$100:$D$1004,$C42)/'Instructions & Basic Setup'!$D$28/'Instructions & Basic Setup'!$D$29,"NA") -> NA | H42: =IFERROR(SUMIFS('Consumption and waste'!$H$100:$H$1004,'Consumption and waste'!$E$100:$E$1004,H$40,'Consumption and waste'!$D$100:$D$1004,$C42)/'Instructions & Basic Setup'!$D$28/'Instructions & Basic Setup'!$D$29,"NA") -> NA | I42: =SUM(D42:H42) -> 0 | J42: =IFERROR(SUMIFS('Consumption and waste'!$H$100:$H$1004,'Consumption and waste'!$G$100:$G$1004,"Y",'Consumption and waste'!$D$100:$D$1004,$C42)/'Instructions & Basic Setup'!$D$28/'Instructions & Basic Setup'!$D$29/I42,"NA") -> NA | K42: =IFERROR(SUMIFS('Consumption and waste'!$H$100:$H$1004,'Consumption and waste'!$F$100:$F$1004,"Local",'Consumption and waste'!$D$100:$D$1004,$C42)/'Instructions & Basic Setup'!$D$28/'Instructions & Basic Setup'!$D$29/I42,"NA") -> NA
C43: Shopping | D43: =IFERROR(SUMIFS('Consumption and waste'!$H$100:$H$1004,'Consumption and waste'!$E$100:$E$1004,D$40,'Consumption and waste'!$D$100:$D$1004,$C43)/'Instructions & Basic Setup'!$D$28/'Instructions & Basic Setup'!$D$29,"NA") -> NA | E43: =IFERROR(SUMIFS('Consumption and waste'!$H$100:$H$1004,'Consumption and waste'!$E$100:$E$1004,E$40,'Consumption and waste'!$D$100:$D$1004,$C43)/'Instructions & Basic Setup'!$D$28/'Instructions & Basic Setup'!$D$29,"NA") -> NA | F43: =IFERROR(SUMIFS('Consumption and waste'!$H$100:$H$1004,'Consumption and waste'!$E$100:$E$1004,F$40,'Consumption and waste'!$D$100:$D$1004,$C43)/'Instructions & Basic Setup'!$D$28/'Instructions & Basic Setup'!$D$29,"NA") -> NA | G43: =IFERROR(SUMIFS('Consumption and waste'!$H$100:$H$1004,'Consumption and waste'!$E$100:$E$1004,G$40,'Consumption and waste'!$D$100:$D$1004,$C43)/'Instructions & Basic Setup'!$D$28/'Instructions & Basic Setup'!$D$29,"NA") -> NA | H43: =IFERROR(SUMIFS('Consumption and waste'!$H$100:$H$1004,'Consumption and waste'!$E$100:$E$1004,H$40,'Consumption and waste'!$D$100:$D$1004,$C43)/'Instructions & Basic Setup'!$D$28/'Instructions & Basic Setup'!$D$29,"NA") -> NA | I43: =SUM(D43:H43) -> 0 | J43: =IFERROR(SUMIFS('Consumption and waste'!$H$100:$H$1004,'Consumption and waste'!$G$100:$G$1004,"Y",'Consumption and waste'!$D$100:$D$1004,$C43)/'Instructions & Basic Setup'!$D$28/'Instructions & Basic Setup'!$D$29/I43,"NA") -> NA | K43: =IFERROR(SUMIFS('Consumption and waste'!$H$100:$H$1004,'Consumption and waste'!$F$100:$F$1004,"Local",'Consumption and waste'!$D$100:$D$1004,$C43)/'Instructions & Basic Setup'!$D$28/'Instructions & Basic Setup'!$D$29/I43,"NA") -> NA
C44: Leisure | D44: =IFERROR(SUMIF(Leisure!$E$35:$E$500,D$40,Leisure!$H$35:$H$500)/'Instructions & Basic Setup'!$D$28/'Instructions & Basic Setup'!$D$29,"NA") -> NA | E44: =IFERROR(SUMIF(Leisure!$E$35:$E$500,E$40,Leisure!$H$35:$H$500)/'Instructions & Basic Setup'!$D$28/'Instructions & Basic Setup'!$D$29,"NA") -> NA | F44: =IFERROR(SUMIF(Leisure!$E$35:$E$500,F$40,Leisure!$H$35:$H$500)/'Instructions & Basic Setup'!$D$28/'Instructions & Basic Setup'!$D$29,"NA") -> NA | G44: =IFERROR(SUMIF(Leisure!$E$35:$E$500,G$40,Leisure!$H$35:$H$500)/'Instructions & Basic Setup'!$D$28/'Instructions & Basic Setup'!$D$29,"NA") -> NA | H44: =IFERROR(SUMIF(Leisure!$E$35:$E$500,H$40,Leisure!$H$35:$H$500)/'Instructions & Basic Setup'!$D$28/'Instructions & Basic Setup'!$D$29,"NA") -> NA | I44: =SUM(D44:H44) -> 0 | J44: =IFERROR(SUMIF(Leisure!$G$35:$G$500,"Y",Leisure!$H$35:$H$500)/'Instructions & Basic Setup'!$D$28/'Instructions & Basic Setup'!$D$29/I44,"NA") -> NA | K44: =IFERROR(SUMIF(Leisure!$F$35:$F$500,"Local",Leisure!$H$35:$H$500)/'Instructions & Basic Setup'!$D$28/'Instructions & Basic Setup'!$D$29/I44,"NA") -> NA
C45: Transport | D45: =IFERROR(SUMIF(Transport!$E$188:$E$500,D$40,Transport!$H$188:$H$500)/'Instructions & Basic Setup'!$D$28/'Instructions & Basic Setup'!$D$29,"NA") -> NA | E45: =IFERROR(SUMIF(Transport!$E$188:$E$500,E$40,Transport!$H$188:$H$500)/'Instructions & Basic Setup'!$D$28/'Instructions & Basic Setup'!$D$29,"NA") -> NA | F45: =IFERROR(SUMIF(Transport!$E$188:$E$500,F$40,Transport!$H$188:$H$500)/'Instructions & Basic Setup'!$D$28/'Instructions & Basic Setup'!$D$29,"NA") -> NA | G45: =IFERROR(SUMIF(Transport!$E$188:$E$500,G$40,Transport!$H$188:$H$500)/'Instructions & Basic Setup'!$D$28/'Instructions & Basic Setup'!$D$29,"NA") -> NA | H45: =IFERROR(SUMIF(Transport!$E$188:$E$500,H$40,Transport!$H$188:$H$500)/'Instructions & Basic Setup'!$D$28/'Instructions & Basic Setup'!$D$29,"NA") -> NA | I45: =SUM(D45:H45) -> 0 | J45: =IFERROR(SUMIF(Transport!$G$188:$G$500,"Y",Transport!$H$188:$H$500)/'Instructions & Basic Setup'!$D$28/'Instructions & Basic Setup'!$D$29/I45,"NA") -> NA | K45: =IFERROR(SUMIF(Transport!$F$188:$F$500,"Local",Transport!$H$188:$H$500)/'Instructions & Basic Setup'!$D$28/'Instructions & Basic Setup'!$D$29/I45,"NA") -> NA
C46: Total | D46: =SUM(D41:D45) -> 0 | E46: 0 | F46: 0 | G46: 0 | H46: 0 | I46: =SUM(I41:I45) -> 0 | J46: =IFERROR(SUMPRODUCT(J41:J45,$I$41:$I$45)/$I$46,"NA") -> NA | K46: =IFERROR(SUMPRODUCT(K41:K45,$I$41:$I$45)/$I$46,"NA") -> NA
C47: % | D47: =IFERROR(D46/$I$46,"NA") -> NA | E47: =IFERROR(E46/$I$46,"NA") -> NA | F47: NA | G47: NA | H47: NA | I47: NA
G50: We define "small businesses" organisations that tend to be family-run (guest houses, cheap eateries). Medium businesses are by definition larger, potentially franchised, and may employ external staff. Large businesses include chains and large brands.
D64: % positive impact | E64: % local
B65: Percentage spent | C65: Accommodation | D65: =J41 -> NA | E65: =K41 -> NA
C66: Food & Bev | D66: =J42 -> NA | E66: NA
C67: Shopping | D67: =J43 -> NA | E67: NA
C68: Leisure | D68: =J44 -> NA | E68: NA
C69: Transport | D69: =J45 -> NA | E69: NA
C70: Total | D70: =J46 -> NA | E70: NA
B87: 2. Socio-economic impact: Volunteering activities | H87: Back to top
B89: =B33 -> Your performance while travelling | D89: =F17 -> NA | F89: =IF(D89=5,"A score of 5 means that you spent none of your time volunteering in positive impact projects.",IF(D89=4,"A score of 4 means that you spent less than 20% of your time volunteering in positive impact projects.",IF(D89=3,"A score of 3 means that you spent between 20 and 40% of your time volunteering in positive impact projects.",IF(D89=2,"A score of 2 means that you spent between 40 and 60% of your time volunteering in positive impact projects.",IF(D89=1,"A score of 1 means that you spent between 60 and 80% of your time volunteering in positive impact projects.","A score of 0 means that you spent more than 80% of your time volunteering in positive impact projects."))))) -> A score of 0 means that you spent more than 80% of your time volunteering in positive impact projects.
B90: =B34 -> Compared with home | D90: =G17 -> NA
B92: Travellers can benefit countries they visit by spending money in the right place and giving in-kind through volunteering e.g. (although it depends on what type of volunteering, see the volunteering page for more information as to how to determine whether your volunteering experience may have had a real positive impact on the host organisation and its beneficiaries).
D95: Indicator
C96: Total days spent | D96: =Volunteering!C33 -> 0
C97: % time | D97: =Volunteering!C34 -> NA
B99: 3. Environmental impact: Greenhouse gases (GHG) from transport | H99: Back to top
B101: =B89 -> Your performance while travelling | D101: =F18 -> NA | F101: =IF(D101=5,"A score of 5 means that you exceeded your daily carbon budget on transport.", IF(D101=4,"A score of 4 means that you used over 80% of your daily carbon budget on transport.",IF(D101=3,"A score of 3 means that you used between 70 and 80% of your daily carbon budget on transport.",IF(D101=2,"A score of 2 means that you used between 50 and 70% of your daily carbon budget on transport.",IF(D101=1,"A score of 1 means that you used less than 50% of your daily carbon budget on transport.", "A score of 0 means that you did not use any of your daily carbon budget on transport."))))) -> A score of 0 means that you did not use any of your daily carbon budget on transport.
B102: =B90 -> Compared with home | D102: =G18 -> NA
B104: Transport can contribute a substantial part of the total GHG emissions of travelling, especially taking the plane, leading to climate change.
D106: =CONCATENATE("While travelling in"," ",'Instructions & Basic Setup'!$D$30) -> While travelling in (Please select) | F106: =CONCATENATE("While at home in"," ",'Instructions & Basic Setup'!$D$31) -> While at home in (Please select)
D107: Km per day per person | E107: GHG Emissions per day per person (kg) | F107: Km per day per person | G107: GHG Emissions per day per person (kg)
C108: Plane | D108: =Transport!H31 -> NA | E108: =Transport!$I31 -> NA | F108: =Transport!H127 -> NA | G108: =Transport!I127 -> NA
C109: Private car/ cab | D109: =Transport!H32 -> NA | E109: =Transport!$I32 -> NA | F109: =Transport!H128 -> NA | G109: =Transport!I128 -> NA
C110: Motorbike | D110: =Transport!H33 -> NA | E110: =Transport!$I33 -> NA | F110: =Transport!H129 -> NA | G110: =Transport!I129 -> NA
C111: Scooter | D111: =Transport!H34 -> NA | E111: =Transport!$I34 -> NA | F111: =Transport!H130 -> NA | G111: =Transport!I130 -> NA
C112: Tuk tuk | D112: =Transport!H35 -> NA | E112: =Transport!$I35 -> NA | F112: =Transport!H131 -> NA | G112: =Transport!I131 -> NA
C113: Boat | D113: =Transport!H36 -> NA | E113: =Transport!$I36 -> NA | F113: =Transport!H132 -> NA | G113: =Transport!I132 -> NA
C114: Bus | D114: =Transport!H37 -> NA | E114: =Transport!$I37 -> NA | F114: =Transport!H133 -> NA | G114: =Transport!I133 -> NA
C115: Train | D115: =Transport!H38 -> NA | E115: =Transport!$I38 -> NA | F115: =Transport!H134 -> NA | G115: =Transport!I134 -> NA
C116: Metro/ tube | D116: =Transport!H39 -> NA | E116: =Transport!$I39 -> NA | F116: =Transport!H135 -> NA | G116: =Transport!I135 -> NA
C117: Hitchhiking | D117: =Transport!H40 -> NA | E117: =Transport!$I40 -> NA | F117: =Transport!H136 -> NA | G117: =Transport!I136 -> NA
C118: Bicycle | D118: =Transport!H41 -> NA | E118: =Transport!$I41 -> NA | F118: =Transport!H137 -> NA | G118: =Transport!I137 -> NA
C119: Walking | D119: =Transport!H42 -> NA | E119: =Transport!$I42 -> NA | F119: =Transport!H138 -> NA | G119: =Transport!I138 -> NA
C120: Total | D120: =SUM(D108:D119) -> 0 | E120: =IF(AND(E108="NA",E109="NA",E110="NA",E111="NA",E112="NA",E113="NA",E114="NA",E115="NA",E116="NA",E117="NA",E118="NA",E119="NA"),"NA",SUM(E108:E119)) -> NA | F120: =IF(AND(F108="NA",F109="NA",F110="NA",F111="NA",F112="NA",F113="NA",F114="NA",F115="NA",F116="NA",F117="NA",F118="NA",F119="NA"),"NA",SUM(F108:F119)) -> NA | G120: =IF(AND(G108="NA",G109="NA",G110="NA",G111="NA",G112="NA",G113="NA",G114="NA",G115="NA",G116="NA",G117="NA",G118="NA",G119="NA"),"NA",SUM(G108:G119)) -> NA
C121: % of your yearly "carbon budget" used | E121: =IFERROR(E120*'Instructions & Basic Setup'!$D$28/3000,"NA") -> NA | F121: =IFERROR(G120*365/3000,"NA") -> NA
C122: % of your daily "carbon budget" used | E122: =IFERROR(E120/(3000/365),"NA") -> NA | F122: =IFERROR(G120/(3000/365),"NA") -> NA
C123: Certainty index (3 = best) | E123: =Transport!J45 -> 0 | F123: =Transport!J140 -> 0
B143: What quantity of carbon emissions did you avoid because you took some public and carbon-free transport locally? We help you calculate the carbon emissions you avoided by choosing these means of transportation.
C146: You avoided this amount of carbon emissions… | E146: Kg of greenhouse gases per traveller | F146: % of actual carbon footprint
E147: 1 traveller
C148: Because you took carbon-free transport (hitchkiking, cycling, walking), you saved: | E148: =Transport!D76 -> NA | F148: =Transport!E76 -> NA
C149: Because you took public transport & carbon-free over private car, you saved: | E149: =Transport!D77 -> 0 | F149: =Transport!E77 -> NA
B152: What your carbon emissions would be if you had chosen another transportation means: what if you had taken only private transports locally, for example cars, cabs or motorcycles? On the other hand, what if you had taken only carbon-free transport (hitchiking, cycling, walking) all the time? We exclude air travels from these results.
C156: What if you had used only… | E156: kg of greenhouse gases per traveller you would have saved (-) or emitted additional (+) if… | F156: % of actual carbon footprint
E157: 1 traveller
C158: Your actual carbon footprint in kg per person over the full period of time | E158: =J95*D46 -> 0
C159: …Private transport (car) | E159: =Transport!D88 -> 0 | F159: =Transport!E88 -> NA
C160: …Private transport (motorcycle/ scooter) | E160: =Transport!D89 -> 0 | F160: =Transport!E89 -> NA
C161: …Buses | E161: =Transport!D90 -> 0 | F161: =Transport!E90 -> NA
C162: …Carbon-free transport in the country itself | E162: =Transport!D91 -> 0 | F162: =Transport!E91 -> NA
B164: Red means that you would have emitted more using this option. Green means you would have saved/ avoided the emission of greenhouse gases. Orange means that the difference is too small to say, as the calculations bear a level of uncertainty.
B168: 4. Environmental impact: Plastic waste | H168: Back to top
B170: =B101 -> Your performance while travelling | D170: =F19 -> NA | F170: The higher the score, the more plastic you used in countries with poor waste management.
B171: =B102 -> Compared with home | D171: =G19 -> NA
B173: In certain countries (in Asia for example), a traveller may generate much more plastic waste than at home, because of the straws, plastic bottles etc. Minimizing one's plastic footprint (and more broadly waste) is particularly important as many countries do not have a proper waste collection and management system in place. We therefore include an index to evaluate this aspect.
D175: =CONCATENATE("While travelling in"," ",'Instructions & Basic Setup'!$D$30) -> While travelling in (Please select) | F175: =CONCATENATE("While at home in"," ",'Instructions & Basic Setup'!$D$31) -> While at home in (Please select)
D176: # bought/ consumed | E176: Estimated weight (kg) | F176: # bought/ consumed | G176: Estimated weight (kg)
C177: # of plastic cups | D177: ='Consumption and waste'!C26 -> 0 | E177: ='Consumption and waste'!D26 -> 0 | F177: ='Consumption and waste'!E26 -> NA | G177: ='Consumption and waste'!F26 -> NA
C178: # of plastic bags | D178: ='Consumption and waste'!C27 -> 0 | E178: ='Consumption and waste'!D27 -> 0 | F178: ='Consumption and waste'!E27 -> NA | G178: ='Consumption and waste'!F27 -> NA
C179: # of plastic bottles (33 cl) | D179: ='Consumption and waste'!C29 -> 0 | E179: ='Consumption and waste'!D29 -> 0 | F179: ='Consumption and waste'!E28 -> NA | G179: ='Consumption and waste'!F28 -> NA
C180: # of plastic bottles (1L) | D180: ='Consumption and waste'!C30 -> 0 | E180: ='Consumption and waste'!D30 -> 0 | F180: ='Consumption and waste'!E29 -> NA | G180: ='Consumption and waste'!F29 -> NA
C181: # of plastic bottles (1.5l) | D181: ='Consumption and waste'!C31 -> 0 | E181: ='Consumption and waste'!D31 -> 0 | F181: ='Consumption and waste'!E30 -> NA | G181: ='Consumption and waste'!F30 -> NA
C182: # of plastic bottles (5l) | D182: ='Consumption and waste'!C32 -> 0 | E182: ='Consumption and waste'!D32 -> 0 | F182: ='Consumption and waste'!E31 -> NA | G182: ='Consumption and waste'!F31 -> NA
C183: # of refills (in litres) | D183: ='Consumption and waste'!C33 -> 0 | E183: ='Consumption and waste'!D33 -> 0 | F183: ='Consumption and waste'!E32 -> NA | G183: ='Consumption and waste'!F32 -> NA
C185: Total plastic use and waste (kg, over full period) | E185: ='Consumption and waste'!D36 -> 0 | G185: ='Consumption and waste'!F36 -> 0
C186: Plastic waste avoided (kg, total over full period) | E186: ='Consumption and waste'!D37 -> 0 | G186: ='Consumption and waste'!F37 -> NA
C187: Country waste mngt index (0=best; 100=worst) | E187: =IFERROR(1-VLOOKUP('Instructions & Basic Setup'!$D$30,sources!$A$203:$I$392,9,FALSE),"NA") -> NA | G187: =IFERROR(1-VLOOKUP('Instructions & Basic Setup'!$D$31,sources!$A$203:$I$392,9,FALSE),"NA") -> NA
C188: Composite index of plastic use and country mngt | E188: =IF(H19="NA","NA",IF(H19>100,100,H19)) -> NA | G188: =IF(I19="NA","NA",IF(H19>100,100,I19)) -> NA
B190: 5. Environmental impact: Food choices | H190: Back to top
B192: =B170 -> Your performance while travelling | D192: =F20 -> NA | F192: =IF(D192=5,"A score of 5 means that none of your meals were either vegetarian or organic.",IF(D192=4,"A score of 4 means that less than 20% of your meals were either vegetarian or organic.",IF(D192=3,"A score of 3 means that between 20 and 40% of your meals were either vegetarian or organic",IF(D192=2,"A score of 2 means that between 40 and 60% of your meals were either vegetarian or organic.",IF(D192=1,"A score of 1 means that between 60 and 80% of your meals were either vegetarian or organic.","A score of 0 means that over 80% of your meals were either vegetarian or organic."))))) -> A score of 0 means that over 80% of your meals were either vegetarian or organic.
B193: =B171 -> Compared with home | D193: =G20 -> NA
B195: Your food choices may have a substantial environmental impact, whether it is on carbon emissions, water use or biodiversity losses. It is difficult to calculate precisely in kg of carbon or cubic meters of water the environmental impact of your food - therefore we focus on practices (did you eat mostly vegetarian meals?) as a proxy.
D197: % of meals; while travelling | E197: % of meals; while at home | F197: Rationale
C198: % of meals vegetarian | D198: ='Consumption and waste'!C46 -> Fill in | E198: ='Consumption and waste'!D46 -> Fill in | F198: Vegetarian & organic meals tend to have a lower environmental footprint than meat-based and non-organic food.
C199: % of meals non-vegetarian | D199: ='Consumption and waste'!C47 -> Fill in | E199: ='Consumption and waste'!D47 -> Fill in
C200: % of meals organic | D200: ='Consumption and waste'!C48 -> Fill in | E200: ='Consumption and waste'!D48 -> Fill in
C201: % of meals non-organic | D201: ='Consumption and waste'!C49 -> Fill in | E201: ='Consumption and waste'!D49 -> Fill in
C203: Refined environmental score based on meal composition | D203: ='Consumption and waste'!C71 -> NA | E203: ='Consumption and waste'!D71 -> NA | F203: Optional calculations taking into account the exact meal composition (meat, grain, dairy, vegetables etc)
B209: 6. Environmental impact: Accommodation choices | H209: Back to top
B211: =B192 -> Your performance while travelling | D211: =F21 -> NA | F211: The higher the score, the more nights in energy and water-intensive accomodations, in countries with high carbon intensity of energy.
B212: =B193 -> Compared with home | D212: =G21 -> NA
B214: We identify "special situations" (either in the positive or negative) and assess them by assigning them a high-level bonus/malus score. For example, we stayed in a few places where electricity was 100% renewable, thereby saving carbon emissions. We assign a bonus of 4 out of 5. In addition, we need to take into account the context: saving energy is far more important from an climate change perspective in a country where the energy mix is very carbon-intensive. We include an index to shed light on this, with 100 the worst situation and 0 the worst.
C218: # of nights spent…: | F218: Rationale | I218: Bonus/malus
C219: … camping/ no electricity | E219: =Accommodation!D24 -> NA | F219: … thereby not emitting greenhouse gases linked to energy use. | I219: 1
C220: … couchsurfing | E220: =Accommodation!D25 -> NA | I220: 2
C221: … in places running on 80+% renewable energy | E221: =Accommodation!D26 -> NA | I221: 2
C222: … dorms | E222: =Accommodation!D27 -> NA | F222: Dorms and homestays tend to use less energy than hotels, given that you share the common areas/ rooms with more people. | I222: 3
C223: … homestays | E223: =Accommodation!D28 -> NA | I223: 3
C224: … mid-range hotels | E224: =Accommodation!D29 -> NA | F224: These hotels tend to use more energy and water per client (more space, lights, swimming pool, towels…) | I224: 4
C225: … high-end hotels | E225: =Accommodation!D30 -> NA | I225: 5
C227: Bonus/malus (5=worst; 1=best) | E227: =Accommodation!D32 -> NA | F227: Weighted average
C228: Country GHGs index (0=best; 100=worst) | E228: =Accommodation!D33 -> NA | F228: Saving energy is even more important in countries with a high GHG intensity of electricity.
C229: Overall score (5=worst; 1=best) | E229: =IFERROR(E227*IF((E228*2)>100,100,E228*2)/100,"NA") -> NA | F229: Takes into account both the bonus/malus average and the country GHGs index

Sheet backoffice (hidden)
A3: red | B3: 165 | C3: 115 | D3: 156 | E3: 198 | F3: 165
A4: green | B4: 150 | C4: 81 | D4: 97 | E4: 113 | F4: 28
A5: blue | B5: 181 | C5: 115 | D5: 132 | E5: 148 | F5: 74
A7: (Please select) | C7: (Please select) | E7: (Please select) | G7: (Please select) | J7: (Please select) | K7: (Please select)
A8: Small | C8: Food & Bev | E8: Leisure | G8: Diesel (average biofuel blend) | J8: Local | K8: Y
A9: Medium | C9: Shopping | E9: Culture | G9: Diesel (100% mineral diesel) | J9: International | K9: N
A10: Large | G10: Petrol (average biofuel blend)
A11: Public services | G11: Petrol (100% mineral petrol)
A12: Religious institutions | G12: CNG
G13: LNG
G14: LPG
G15: Other petroleum gas
G16: Fuel oil
G17: Gas oil
G18: Marine gas oil
G19: Marine fuel oil

Sheet sources (hidden)
A3: Emission factors
A6: Plane | B6: 0.19 | C6: Defra, international, economy class (incl. Production and combustion of fuel)
A7: Private car/ cab | B7: =0.17+0.04 -> 0.21 | C7: Defra, average car (incl. Production and combustion of fuel)
A8: Camping car | B8: 0.41 | C8: 14L au 100 | D8: a contresens
A9: Motorbike | B9: =0.11+0.03 -> 0.14 | C9: Defra, average motorbike (incl. Production and combustion of fuel)
A10: Scooter | B10: =0.08+0.02 -> 0.1 | C10: Defra, small motorbike (incl. Production and combustion of fuel)
A11: Tuk tuk | B11: =(2.3+0.6)/25/2 -> 0.058 | C11: Defra + testimony
A12: Boat | B12: 0.05 | D12: blue economy
A13: Bus | B13: 0.034 | F13: bus lower than train?
A14: Train | B14: 0.06 | C14: https://www.co2nnect.org/help_sheets/?op_id=602&opt_id=98
A15: Hitchhiking | B15: 0
A16: Bicycle | B16: 0
A17: Walking | B17: 0
A18: Metro/ tube | B18: =B21*C135 -> 0.00497492962
A20: Bottle 1.5L | B20: 43g | C20: Hellopro
A21: Electricity tube per passenger.km | B21: 0.13 | C21: Defra | D21: kwh
A23: Activity | B23: Fuel | C23: Unit | D23: kg CO2e | E23: kg CO2 | F23: kg CH4 | G23: kg N2O
B24: Diesel (average biofuel blend) | C24: litres | D24: 2.600162711 | E24: 2.578426058 | F24: 0.0005168102835 | G24: 0.02121984291
B25: Diesel (100% mineral diesel) | C25: litres | D25: 2.671932075 | E25: 2.650195422 | F25: 0.0005168102835 | G25: 0.02121984291
B26: Petrol (average biofuel blend) | C26: litres | D26: 2.198353607 | E26: 2.187597049 | F26: 0.007038126183 | G26: 0.003718431743
B27: Petrol (100% mineral petrol) | C27: litres | D27: 2.300749253 | E27: 2.289992695 | F27: 0.007038126183 | G27: 0.003718431743
B28: CNG | C28: litres | D28: 0.492451364 | E28: 0.491499667 | F28: 0.0006935172679 | G28: 0.0002581797367
B29: LNG | C29: litres | D29: 1.273306694 | E29: 1.270845939 | F29: 0.001793192677 | G29: 0.0006675623445
B30: LPG | C30: litres | D30: 1.508071357 | E30: 1.505834111 | F30: 0.001088254976 | G30: 0.001148991064
B31: Other petroleum gas | C31: litres | D31: 0.9610050434 | E31: 0.9600899232 | F31: 0.0004174818596 | G31: 0.0004976383767
B32: Fuel oil | C32: litres | D32: 3.16976367 | E32: 3.158656475 | F32: 0.003944915585 | G32: 0.007162279866
B33: Gas oil | C33: litres | D33: 2.953505263 | E33: 2.714893617 | F33: 0.003025574496 | G33: 0.2355860715
B34: Marine gas oil | C34: litres | D34: 2.736246809 | E34: 2.714893617 | F34: 0.001063829787 | G34: 0.0202893617
B35: Marine fuel oil | C35: litres | D35: 3.190658153 | E35: 3.166011788 | F35: 0.001227897839 | G35: 0.02341846758
A37: (Please select) | B37: 2015 | C37: C02 per fuel consumption (t per tj to kg per kwh) | D37: Rank
A38: Albania | B38: 41.7063 | C38: =B38*1000/277778 -> 0.1501425599 | D38: =RANK(C38,$C$38:$C$183,1) -> 51 | E38: =C38*100/0.3 -> 50.04751996
A39: Algeria | B39: 57.6456 | C39: 0.207523994 | D39: 101 | E39: 69.17466466
A40: Angola | B40: 32.6177 | C40: 0.1174236261 | D40: 33 | E40: 39.14120869
A41: Argentina | B41: 53.18 | C41: 0.1914478468 | D41: 83 | E41: 63.81594895
A42: Armenia | B42: 36.5748 | C42: 0.1316691747 | D42: 41 | E42: 43.88972489
A43: Australia | B43: 72.6103 | C43: 0.2613968709 | D43: 140 | E43: 87.13229029
A44: Austria | B44: 45.2599 | C44: 0.1629355097 | D44: 59 | E44: 54.31183655
A45: Azerbaijan | B45: 51.2402 | C45: 0.1844645724 | D45: 76 | E45: 61.48819081
A46: Bahrain | B46: 50.3199 | C46: 0.1811514951 | D46: 72 | E46: 60.38383169
A47: Bangladesh | B47: 44.4482 | C47: 0.160013392 | D47: 58 | E47: 53.33779733
A48: Belarus | B48: 50.2851 | C48: 0.1810262152 | D48: =RANK(C38,C38:C183,0) -> 96 | E48: 60.34207173
A49: Belgium | B49: 41.4565 | C49: 0.1492432806 | D49: =RANK(C39,C39:C184,0) -> 46 | E49: 49.7477602
A50: Benin | B50: 27.7691 | C50: 0.09996868003 | D50: =RANK(C40,C40:C185,0) -> 112 | E50: 33.32289334
A51: Bolivia | B51: 52.7193 | C51: 0.1897893282 | D51: =RANK(C41,C41:C185,0) -> 63 | E51: 63.26310939
A52: Bosnia and Herzegovina | B52: 66.1388 | C52: 0.2380994895 | D52: =RANK(C42,C42:C185,0) -> 103 | E52: 79.36649651
A53: Botswana | B53: 62.0322 | C53: 0.2233157413 | D53: =RANK(C43,C43:C185,0) -> 7 | E53: 74.43858045
A54: Brazil | B54: 36.1327 | C54: 0.1300776159 | D54: =RANK(C44,C44:C185,0) -> 85 | E54: 43.35920531
A55: Brunei Darussalam | B55: 52.5307 | C55: 0.1891103687 | D55: =RANK(C45,C45:C185,0) -> 68 | E55: 63.03678957
A56: Bulgaria | B56: 56.209 | C56: 0.2023522381 | D56: =RANK(C46,C46:C185,0) -> 71 | E56: 67.45074604
A57: Cambodia | B57: 27.1834 | C57: 0.09786016171 | D57: =RANK(C47,C47:C185,0) -> 83 | E57: 32.6200539
A58: Cameroon | B58: 18.4323 | C58: 0.06635622692 | D58: =RANK(C48,C48:C185,0) -> 71 | E58: 22.11874231
A59: Canada | B59: 48.5515 | C59: 0.1747852602 | D59: =RANK(C49,C49:C185,0) -> 88 | E59: 58.26175339
A60: Chile | B60: 54.0026 | C60: 0.1944092045 | D60: =RANK(C50,C50:C185,0) -> 111 | E60: 64.80306816
A61: Chinese Taipei | B61: 54.7386 | C61: 0.1970588024 | D61: =RANK(C51,C51:C185,0) -> 62 | E61: 65.68626745
A62: Colombia | B62: 51.1392 | C62: 0.1841009727 | D62: =RANK(C52,C52:C185,0) -> 19 | E62: 61.36699091
A63: Congo | B63: 24.3013 | C63: 0.08748461001 | D63: =RANK(C53,C53:C185,0) -> 28 | E63: 29.16153667
A64: Costa Rica | B64: 33.5727 | C64: 0.1208616233 | D64: =RANK(C54,C54:C185,0) -> 94 | E64: 40.28720777
A65: Côte d'Ivoire | B65: 17.7662 | C65: 0.06395826883 | D65: =RANK(C55,C55:C185,0) -> 60 | E65: 21.31942294
A66: Croatia | B66: 44.1107 | C66: 0.158798393 | D66: =RANK(C56,C56:C185,0) -> 49 | E66: 52.93279765
A67: Cuba | B67: 59.1995 | C67: 0.2131180295 | D67: =RANK(C57,C57:C185,0) -> 105 | E67: 71.03934317
A68: Curaçao | B68: 56.4988 | C68: 0.2033955173 | D68: =RANK(C58,C58:C185,0) -> 110 | E68: 67.79850576
A69: Cyprus | B69: 69.9474 | C69: 0.2518104386 | D69: =RANK(C59,C59:C185,0) -> 70 | E69: 83.93681285
A70: Czech Republic | B70: 56.4148 | C70: =B70*1000/277778 -> 0.2030931175 | D70: =RANK(C60,C60:C185,0) -> 56 | E70: =C70*100/0.3 -> 67.69770584
A71: Dem. Rep. of Congo | B71: 2.2606 | C71: 0.008138153489 | D71: =RANK(C61,C61:C185,0) -> 53 | E71: 2.71271783
A72: Denmark | B72: 47.4493 | C72: 0.1708173433 | D72: =RANK(C62,C62:C185,0) -> 62 | E72: 56.93911445
A73: Dominican Republic | B73: 61.8744 | C73: 0.2227476618 | D73: 103 | E73: 74.2492206
A74: DPR of Korea | B74: 68.6947 | C74: 0.2473007222 | D74: 93 | E74: 82.43357405
A75: Ecuador | B75: 59.5939 | C75: 0.2145378684 | D75: 107 | E75: 71.51262279
A76: Egypt | B76: 59.7441 | C76: 0.2150785879 | D76: 76 | E76: 71.69286265
A77: El Salvador | B77: 35.7465 | C77: 0.1286872971 | D77: 41 | E77: 42.89576568
A78: Eritrea | B78: 17.0978 | C78: 0.06155203076 | D78: 49 | E78: 20.51734359
A79: Estonia | B79: 68.4005 | C79: 0.246241603 | D79: 17 | E79: 82.08053434
A80: Ethiopia | B80: 4.8721 | C80: 0.01753954597 | D80: 51 | E80: 5.846515323
A81: Finland | B81: 30.9339 | C81: 0.1113619509 | D81: 121 | E81: 37.1206503
A82: France | B82: 28.1462 | C82: 0.1013262389 | D82: 74 | E82: 33.77541298
A83: FYR of Macedonia | B83: 64.5595 | C83: 0.2324140141 | D83: 37 | E83: 77.47133802
A84: Gabon | B84: 15.2763 | C84: 0.054994636 | D84: 23 | E84: 18.33154533
A85: Georgia | B85: 43.2285 | C85: 0.1556224755 | D85: 44 | E85: 51.8741585
A86: Germany | B86: 56.6294 | C86: 0.2038656769 | D86: 43 | E86: 67.95522564
A87: Ghana | B87: 34.6032 | C87: 0.1245714203 | D87: 92 | E87: 41.52380678
A88: Gibraltar | B88: 66.1644 | C88: 0.2381916494 | D88: 107 | E88: 79.39721648
A89: Greece | B89: 66.5258 | C89: 0.2394926884 | D89: 25 | E89: 79.83089614
A90: Guatemala | B90: 28.4812 | C90: 0.102532238 | D90: 118 | E90: 34.17741266
A91: Haiti | B91: 17.9363 | C91: 0.06457062834 | D91: 96 | E91: 21.52354278
A92: Honduras | B92: 38.8488 | C92: 0.1398555681 | D92: 101 | E92: 46.61852271
A93: Hong Kong, China | B93: 75.4591 | C93: 0.2716525427 | D93: 35 | E93: 90.55084756
A94: Hungary | B94: 40.2522 | C94: 0.1449078041 | D94: 108 | E94: 48.30260136
A95: Iceland | B95: 8.7859 | C95: 0.0316292147 | D95: =RANK(C85,C85:C207,0) -> 80 | E95: 10.54307157
A96: India | B96: 57.9771 | C96: 0.208717393 | D96: 52 | E96: 69.57246434
A97: Indonesia | B97: 46.8349 | C97: 0.1686055051 | D97: 94 | E97: 56.20183504
A98: Iraq | B98: 65.9114 | C98: 0.2372808502 | D98: 33 | E98: 79.09361673
A99: Ireland | B99: 63.596 | C99: 0.2289454168 | D99: 32 | E99: 76.31513895
A100: Islamic Rep. of Iran | B100: 55.7815 | C100: 0.2008132393 | D100: 97 | E100: 66.93774645
A101: Israel | B101: 64.748 | C101: 0.2330926135 | D101: 102 | E101: 77.69753784
A102: Italy | B102: 51.7662 | C102: =B102*1000/277778 -> 0.1863581709 | D102: 85 | E102: =C102*100/0.3 -> 62.1193903
A103: Jamaica | B103: 57.695 | C103: 0.2077018338 | D103: 23 | E103: 69.23394461
A104: Japan | B104: 63.4412 | C104: 0.2283881373 | D104: 85 | E104: 76.1293791
A105: Jordan | B105: 65.8533 | C105: 0.2370716903 | D105: 111 | E105: 79.02389678
A106: Kazakhstan | B106: 68.8607 | C106: 0.2478983217 | D106: 52 | E106: 82.63277389
A107: Kenya | B107: 13.4545 | C107: 0.04843616125 | D107: 77 | E107: 16.14538708
A108: Korea | B108: 51.3258 | C108: 0.1847727322 | D108: 36 | E108: 61.59091073
A109: Kosovo | B109: 81.8244 | C109: 0.2945676043 | D109: 40 | E109: 98.18920145
A110: Kuwait | B110: 58.8398 | C110: 0.2118231105 | D110: 59 | E110: 70.60770351
A111: Kyrgyzstan | B111: 59.2903 | C111: 0.2134449092 | D111: 40 | E111: 71.14830308
A112: Latvia | B112: 38.3477 | C112: 0.1380516096 | D112: 65 | E112: 46.01720319
A113: Lebanon | B113: 70.9457 | C113: 0.2554043157 | D113: 54 | E113: 85.13477189
A114: Libya | B114: 62.7396 | C114: 0.2258623793 | D114: 43 | E114: 75.28745977
A115: Lithuania | B115: 34.8803 | C115: 0.1255689795 | D115: 42 | E115: 41.85632651
A116: Luxembourg | B116: 56.4349 | C116: 0.2031654775 | D116: 39 | E116: 67.72182582
A117: Malaysia | B117: 61.3133 | C117: 0.2207277034 | D117: =RANK(C107,C107:C228,0) -> 102 | E117: 73.57590114
A118: Malta | B118: 61.2764 | C118: 0.2205948635 | D118: 67 | E118: 73.53162117
A119: Mauritius | B119: 65.2896 | C119: 0.235042372 | D119: 31 | E119: 78.34745732
A120: Mexico | B120: 56.3832 | C120: 0.2029793576 | D120: 52 | E120: 67.65978587
A121: Mongolia | B121: 82.9109 | C121: 0.2984790012 | D121: 52 | E121: 99.49300041
A122: Montenegro | B122: 55.817 | C122: 0.2009410392 | D122: 86 | E122: 66.98034642
A123: Morocco | B123: 67.6526 | C123: 0.2435491652 | D123: 40 | E123: 81.18305505
A124: Mozambique | B124: 9.3094 | C124: 0.03351381319 | D124: 47 | E124: 11.17127106
A125: Myanmar | B125: 29.3637 | C125: 0.1057092354 | D125: 90 | E125: 35.23641181
A126: Namibia | B126: 48.7557 | C126: 0.1755203796 | D126: 56 | E126: 58.50679319
A127: Nepal | B127: 11.4358 | C127: 0.04116884706 | D127: 49 | E127: 13.72294902
A128: Netherlands | B128: 50.4658 | C128: 0.1816767347 | D128: 50 | E128: 60.55891155
A129: New Zealand | B129: 36.0727 | C129: 0.1298616161 | D129: 48 | E129: 43.28720537
A130: Nicaragua | B130: 31.3852 | C130: 0.1129866296 | D130: 56 | E130: 37.66220987
A131: Niger | B131: 16.0059 | C131: 0.0576211939 | D131: 37 | E131: 19.20706463
A132: Nigeria | B132: 11.0428 | C132: 0.0397540482 | D132: 57 | E132: 13.2513494
A133: Norway | B133: 29.6149 | C133: 0.1066135547 | D133: 49 | E133: 35.53785157
A134: Oman | B134: 60.5073 | C134: =B134*1000/277778 -> 0.2178261057 | D134: 105 | E134: =C134*100/0.3 -> 72.60870191
A135: Other Africa | B135: 10.6302 | C135: 0.03826868939 | D135: 92 | E135: 12.7562298
A136: Other Asia | B136: 43.3025 | C136: 0.1558888753 | D136: 72 | E136: 51.96295843
A137: Other Non-OECD Americas | B137: 67.6659 | C137: 0.2435970451 | D137: 101 | E137: 81.19901504
A138: Pakistan | B138: 37.1413 | C138: 0.133708573 | D138: 68 | E138: 44.56952434
A139: Panama | B139: 59.8799 | C139: 0.2155674675 | D139: 86 | E139: 71.85582252
A140: Paraguay | B140: 25.0555 | C140: 0.09019972784 | D140: 88 | E140: 30.06657595
A141: People's Rep. of China | B141: 72.6256 | C141: 0.2614519508 | D141: 96 | E141: 87.15065028
A142: Peru | B142: 47.6937 | C142: 0.1716971826 | D142: 98 | E142: 57.23239421
A143: Philippines | B143: 47.5731 | C143: 0.171263023 | D143: 90 | E143: 57.08767433
A144: Poland | B144: 71.0526 | C144: 0.2557891554 | D144: 55 | E144: 85.26305179
A145: Portugal | B145: 51.1494 | C145: 0.1841376927 | D145: 100 | E145: 61.3792309
A146: Qatar | B146: 42.0143 | C146: 0.151251359 | D146: 80 | E146: 50.41711967
A147: Republic of Moldova | B147: 53.5105 | C147: 0.1926376459 | D147: 55 | E147: 64.21254863
A148: Romania | B148: 52.047 | C148: 0.1873690501 | D148: 87 | E148: 62.45635003
A149: Russian Federation | B149: 49.4358 | C149: 0.1779687376 | D149: 57 | E149: 59.32291254
A150: Saudi Arabia | B150: 57.2576 | C150: 0.2061271951 | D150: 92 | E150: 68.70906503
A151: Senegal | B151: 38.8361 | C151: 0.1398098482 | D151: =RANK(C141,C141:C261,0) -> 49 | E151: 46.60328272
A152: Serbia | B152: 72.0554 | C152: 0.2593992325 | D152: =RANK(C142,C142:C262,0) -> 75 | E152: 86.46641083
A153: Singapore | B153: 41.4379 | C153: 0.1491763207 | D153: =RANK(C143,C143:C263,0) -> 75 | E153: 49.72544022
A154: Slovak Republic | B154: 42.8885 | C154: 0.1543984765 | D154: =RANK(C144,C144:C263,0) -> 51 | E154: 51.46615883
A155: Slovenia | B155: 46.653 | C155: 0.1679506656 | D155: 71 | E155: 55.98355521
A156: South Africa | B156: 71.9042 | C156: 0.2588549129 | D156: 79 | E156: 86.28497097
A157: South Sudan | B157: 45.6627 | C157: 0.1643855885 | D157: 70 | E157: 54.79519616
A158: Spain | B158: 49.6111 | C158: 0.1785998171 | D158: 70 | E158: 59.53327237
A159: Sri Lanka | B159: 40.7093 | C159: 0.1465533628 | D159: 73 | E159: 48.85112092
A160: Sudan | B160: 23.4646 | C160: 0.08447249242 | D160: =RANK(C150,C150:C268,0) -> 63 | E160: 28.15749747
A161: Suriname | B161: 74.5034 | C161: 0.2682120254 | D161: =RANK(C151,C151:C269,0) -> 80 | E161: 89.40400848
A162: Sweden | B162: 19.4826 | C162: 0.07013730389 | D162: =RANK(C152,C152:C270,0) -> 52 | E162: 23.3791013
A163: Switzerland | B163: 36.3253 | C163: 0.1307709754 | D163: =RANK(C153,C153:C271,0) -> 78 | E163: 43.59032513
A164: Syrian Arab Republic | B164: 62.8101 | C164: 0.2261161791 | D164: =RANK(C154,C154:C271,0) -> 75 | E164: 75.3720597
A165: Tajikistan | B165: 38.2252 | C165: 0.1376106099 | D165: 72 | E165: 45.8702033
A166: Thailand | B166: 43.7229 | C166: =B166*1000/277778 -> 0.1574023141 | D166: 54 | E166: =C166*100/0.3 -> 52.46743803
A167: Togo | B167: 13.0227 | C167: 0.04688168249 | D167: 73 | E167: 15.6272275
A168: Trinidad and Tobago | B168: 28.0609 | C168: 0.1010191592 | D168: 72 | E168: 33.67305306
A169: Tunisia | B169: 55.9688 | C169: 0.2014875188 | D169: 75 | E169: 67.16250627
A170: Turkey | B170: 58.8199 | C170: 0.2117514706 | D170: 83 | E170: 70.58382353
A171: Turkmenistan | B171: 59.7225 | C171: 0.215000828 | D171: 56 | E171: 71.66694267
A172: Ukraine | B172: 50.2243 | C172: 0.1808073354 | D172: 84 | E172: 60.26911178
A173: United Arab Emirates | B173: 58.7304 | C173: 0.2114292709 | D173: 77 | E173: 70.47642362
A174: United Kingdom | B174: 51.5024 | C174: 0.1854084917 | D174: 60 | E174: 61.80283056
A175: United Rep. of Tanzania | B175: 10.6839 | C175: 0.03846200923 | D175: 76 | E175: 12.82066974
A176: United States | B176: 54.5467 | C176: 0.1963679629 | D176: 74 | E176: 65.45598764
A177: Uruguay | B177: 30.3073 | C177: 0.1091061927 | D177: 85 | E177: 36.36873091
A178: Uzbekistan | B178: 53.6118 | C178: 0.1930023256 | D178: 82 | E178: 64.33410853
A179: Venezuela | B179: 55.0449 | C179: 0.1981614815 | D179: 67 | E179: 66.05382716
A180: Viet Nam | B180: 54.461 | C180: 0.1960594432 | D180: 64 | E180: 65.35314772
A181: Yemen | B181: 76.4938 | C181: 0.2753774597 | D181: 64 | E181: 91.79248657
A182: Zambia | B182: 7.6981 | C182: 0.02771313783 | D182: 73 | E182: 9.23771261
A183: Zimbabwe | B183: 24.9807 | C183: 0.08993044806 | D183: 65 | E183: 29.97681602
B187: Beef | C187: 5
B188: Cheese | C188: 4
B189: Fish | C189: 4
B190: Poultry | C190: 3
B191: Legumes (beans, lentils, chickpeas…) | C191: 2
B192: Eggs | C192: 2
B193: Sweets | C193: 1
B194: Cereals | C194: 1
B195: Yogurt | C195: 1
B196: Pasta | C196: 1
B197: Rice | C197: 1
B198: Bread | C198: 1
B199: Milk and dairy | C199: 1
B200: Fruits and veggies | C200: 0
C202: % waste unmanaged | D202: Municipal waste landfilled | E202: Municipal waste incinerated | F202: Municipal waste recycled | G202: Municipal waste incinerated with energy recovery
A203: Afghanistan | B203: =VLOOKUP(A203,countries,1,FALSE) ->  | C203: 0.3275000048 | D203: 0 | E203: 0 | F203: 0 | G203: 0 | H203: =SUM(C203:G203) -> 0.3275000048 | I203: =0.5*(1-C203)+0.5*(F203) -> 0.3362499976
A204: Albania | B204: Albania | C204: 0.15 | D204: 0 | E204: 0 | F204: 0 | G204: 0 | H204: 0.15 | I204: 0.425 | K204: Algeria
A205: Algeria | B205: Algeria | C205: 0.3998705882 | D205: 0.5996117647 | E205: 0 | F205: 0.0005176470588 | G205: 0 | H205: 1 | I205: 0.3003235294 | K205: Angola
A206: Andorra | C206: 0 | D206: 0 | E206: 1 | F206: 0 | G206: 0 | H206: 1 | I206: 0.5
A207: Angola | B207: Angola | C207: 0.6365 | D207: 0 | E207: 0 | F207: 0 | G207: 0 | H207: 0.6365 | I207: 0.18175 | K207: Armenia
A208: Antigua and Barbuda | C208: 0.05 | D208: 0.95 | E208: 0 | F208: 0 | G208: 0 | H208: 1 | I208: 0.475
A209: Argentina | B209: Argentina | C209: 0.3311274769 | D209: 0.6423825222 | E209: 0 | F209: 0.02649000092 | G209: 0 | H209: 1 | I209: 0.347681262 | K209: Austria
A210: Armenia | B210: Armenia | C210: 0.8197500038 | D210: 0.1802499962 | E210: 0 | F210: 0 | G210: 0 | H210: 1 | I210: 0.09012499809 | K210: Azerbaijan
A211: Aruba | C211: 0 | D211: 0 | E211: 0 | F211: 0 | G211: 0 | H211: 0 | I211: 0.5
... 181 more rows

Sheet ideas (hidden)
A1: ideas pour la v2
A2: rajouter helicopter dans transport
A3: rajouter d'autres modes de transport - sources hybrides
A4: add international transport in what if analysis
A5: transport dans benevolat
A6: electronics

Sheet Feuil1 (hidden)

Sheet Feuil2 (hidden)
C2: cab
C3: km | D3: person
C4: 9 | D4: 2
C5: 9 | D5: 4
C6: 13 | D6: 4
C7: 70 | D7: 4
C8: 3.5 | D8: 2
C9: 12 | D9: 5
C10: =SUM(C4:C9)*2 -> 233
C11: =SUMPRODUCT(C4:C9,D4:D9)/SUM(C4:C9) -> 3.888412017
C14: Jeepney/trycicle | E14: consumtion
B15: Jeepney | C15: 3 | D15: 15 | E15: 15 | G15: Huts nuts | H15: 2 | I15: 4
B16: Jeepney | C16: 32 | D16: 25 | E16: 15 | G16: boat tour | H16: 50 | I16: 20
B17: Jeepney | C17: 8 | D17: 25 | E17: 15 | G17: Talibon | H17: 120 | I17: 60
B18: Trycicle | C18: 3 | D18: 2 | E18: 7 | G18: Sibulan | H18: 5
B19: Trycicle | C19: 1 | D19: 2 | E19: 7 | G19: Siquijor | H19: 20
B20: jeepney | C20: 6 | D20: 15 | E20: 15 | G20: Apo | H20: 15
B21: Trycicle | C21: 6 | D21: 4 | E21: 7 | H21: 200
B22: jeepney | C22: 20 | D22: 15 | E22: 15 | H22: 1000
B23: jeepney | C23: 6 | D23: 20 | E23: 15 | H23: =SUM(H15:H22)*2 -> 2824
B24: Trycicle | C24: 3 | D24: 1 | E24: 7
B25: Trycicle | C25: 3 | D25: 2 | E25: 7
B26: jeepney | C26: 5 | D26: 15 | E26: 15
C28: =SUM(C15:C26)*2-3 -> 189 | D28: =SUMPRODUCT(C15:C26,D15:D26)/SUM(C15:C26) -> 17.40625 | E28: =SUM(E15:E26) -> 140
